Workbook

Sheet 088
A1: Эксплуатационная карта
D2: Работы пожарного автомобиля за | G2: =Нормы!G3 -> Март 2015 г | L2: Наименование и № подразделения | S2: К Г К У 9 - О П С | V2: 37 - П Ч
A3: Тип,марка,модель Автоцистерна АЦ 40 (130) Государственный регистрационный знак | X3: Х 088 ОМ
A4: Пробег а/м на 1-е число отчетного месяца от начала эксплуатаций: шасси | L4: =Нормы!B98 -> 96021 | N4: км.двигатель | P4: =Нормы!C98 -> 36707 | S4: км.(приведенный)
A5: Остаток топлива в автомобиле на 1-е число отчетного месяца | L5: ='отчёт '!F14 -> 36 | X5: литр.
A6: Заправлено топлива в автомобиль за отчетный месяц | I6: =U91 -> 0 | X6: литр.
A7: Остаток топлива в автомобиле на 1-е число следующего за отчетным месяцем | M7: =X91 -> 35.505 | X7: литр.
A8: Результат расхода топлива за отчетный месяц
E9: фактически | G9: =V91 -> 0.495 | J9: литр. | L9: Экономия _________________литр.
E10: по нормам | G10: =W91 -> 0.495 | J10: литр. | L10: Перерасход _________________литр.
A12: дата | B12: Наименование и место работы автомобиля(То,работа на пожаре,учениях и др) | G12: работа пожарного автомобиля | V12: расход топлива в литрах | X12: Остаток топлива | Y12: подписи
G13: время выезда | I13: время возвращения | K13: показания спидометра перед выездом | L13: пройдено км к месту работы и обратно | M13: на пожарах (в мин) | O13: на учениях (в мин) | Q13: при смене караула (в мин) | S13: на прочих работах | U13: заправлено топлива в автомобиль
G14: часы | H14: минуты | I14: часы | J14: минуты | M14: с насосом | N14: без насоса | O14: с насосом | P14: без насоса | Q14: с насосом | R14: без насоса | S14: с насосом | T14: без насоса | V14: фактически | W14: по нормам | Y14: водителя | Z14: начальника караула
A15: 1 | B15: 2 | G15: 3 | H15: 4 | I15: 5 | J15: 6 | K15: 7 | L15: 8 | M15: 9 | N15: 10 | O15: 11 | P15: 12 | Q15: 13 | R15: 14 | S15: 15 | T15: 16 | U15: 17 | V15: 18 | W15: 19 | X15: 20 | Y15: 21 | Z15: 22
A16: 1,03 | B16: Смена караула | K16: =L4 -> 96021 | L16: =IF(K17="","",K17-K16) ->  | R16: 3 | V16: =W16 -> 0.495 | W16: =IF(L16="",0,L16)*КИЛОМЕТР+(M16+O16+Q16+S16)*НАСОС+(N16+P16+R16+T16)*БЕЗ_НАСОСА -> 0.495 | X16: =Остаток_на_начало_месяца-W16+U16 -> 35.505
V17: =W17 -> 0 | W17: 0 | X17: =IF(W17=0,"",X16-W17+U17) -> 
V18: =W18 -> 0 | W18: 0
V19: 0 | W19: 0
V20: 0 | W20: =IF(L20="",0,L20)*КИЛОМЕТР+(M20+O20+Q20+S20)*НАСОС+(N20+P20+R20+T20)*БЕЗ_НАСОСА -> 0
V21: 0 | W21: =IF(L21="",0,L21)*КИЛОМЕТР+(M21+O21+Q21+S21)*НАСОС+(N21+P21+R21+T21)*БЕЗ_НАСОСА -> 0
V22: 0 | W22: 0
V23: 0 | W23: 0
V24: 0 | W24: 0
V25: 0 | W25: 0
V26: 0 | W26: 0
V27: 0 | W27: 0
V28: 0 | W28: 0
V29: 0 | W29: 0
V30: 0 | W30: 0
L31: =IF(K32="","",K32-K31) ->  | V31: 0 | W31: 0
V32: 0 | W32: 0
V33: 0 | W33: 0
L34: =IF(K35="","",K35-K34) ->  | V34: 0 | W34: 0
V35: 0 | W35: 0
V36: 0 | W36: 0
V37: 0 | W37: 0
V38: 0 | W38: 0
V39: 0 | W39: 0
V40: 0 | W40: 0
V41: 0 | W41: 0
V42: 0 | W42: 0
V43: 0 | W43: 0
L44: =IF(K45="","",K45-K44) ->  | V44: 0 | W44: 0
L45: =IF(K46="","",K46-K45) ->  | V45: 0 | W45: 0
L46: =IF(K47="","",K47-K46) ->  | V46: 0 | W46: 0
V47: 0 | W47: 0
V48: 0 | W48: =IF(L48="",0,L48)*КИЛОМЕТР+(M48+O48+Q48+S48)*НАСОС+(N48+P48+R48+T48)*БЕЗ_НАСОСА -> 0
V49: 0 | W49: 0
V50: 0 | W50: 0
V51: 0 | W51: 0
V52: 0 | W52: 0
V53: 0 | W53: 0
V54: 0 | W54: 0
V55: 0 | W55: 0
V56: 0 | W56: 0
V57: 0 | W57: 0
V58: 0 | W58: 0
V59: 0 | W59: 0
V60: 0 | W60: 0
V61: 0 | W61: 0
V62: 0 | W62: 0
V63: 0 | W63: 0
V64: 0 | W64: 0
V65: 0 | W65: 0
V66: 0 | W66: 0
V67: 0 | W67: 0
V68: 0 | W68: 0
V69: 0 | W69: 0
V70: 0 | W70: 0
V71: 0 | W71: 0
V72: 0 | W72: 0
V73: 0 | W73: 0
V74: 0 | W74: 0
V75: 0 | W75: 0
V76: 0 | W76: 0
V77: 0 | W77: 0
V78: 0 | W78: 0
V79: 0 | W79: 0
V80: 0 | W80: =IF(L80="",0,L80)*КИЛОМЕТР+(M80+O80+Q80+S80)*НАСОС+(N80+P80+R80+T80)*БЕЗ_НАСОСА -> 0
L81: =IF(K82="","",K82-K81) ->  | V81: =W81 -> 0 | W81: 0 | X81: =IF(W81=0,"",X80-W81+U81) -> 
V82: 0 | W82: 0
V83: 0 | W83: 0
V84: 0 | W84: 0
V85: 0 | W85: 0
V86: 0 | W86: 0
V87: 0 | W87: 0
V88: 0 | W88: 0
V89: 0 | W89: 0 | X89: =IF(W89=0,"",X88-W89+U89) -> 
V90: 0 | W90: 0
A91: ИТОГО за месяц | L91: =SUM(L16:L90) -> 0 | M91: 0 | N91: 0 | O91: 0 | P91: 0 | Q91: 0 | R91: 3 | S91: 0 | T91: 0 | U91: 0 | V91: 0.495 | W91: 0.495 | X91: =Остаток_на_начало_месяца+Заправлено-W91 -> 35.505
A92: Израсходовано топлива по элементам работы(в литрах) | L92: =L91*КИЛОМЕТР -> 0 | M92: =M91*НАСОС -> 0 | N92: =N91*БЕЗ_НАСОСА -> 0 | O92: =O91*НАСОС -> 0 | P92: =P91*БЕЗ_НАСОСА -> 0 | Q92: =Q91*НАСОС -> 0 | R92: =R91*БЕЗ_НАСОСА -> 0.495 | S92: =S91*НАСОС -> 0 | T92: =T91*БЕЗ_НАСОСА -> 0
A93: Наработка а/м за отчетный месяц в км.(с учетом приведенного) | J93: =(M91+O91+Q91+S91)/60*50+L91 -> 0 | L93: км.
Q94: Текущая норма | V94: Пробег по спидометру, км | Y94: =L91 -> 0
C95: Руководитель подразделения | L95: Старший водитель | Q95: 1 км | T95: 0.498 | V95: Наработка с насосом м.ч. | Y95: =(M91+O91+Q91+S91)/60 -> 0
C96: <_____>______________________2015г. | L96: <_____>______________________ | P96: 2015г. | Q96: 1 мин с насосом | T96: 0.363 | V96: Наработка без насоса | Y96: =N91+P91+R91+T91 -> 3
Q97: 1 мин без насоса | T97: 0.165 | V97: Приведенный пробег | Y97: =Y95*50 -> 0
V98: Общий пробег | Y98: =Y94+Y97 -> 0

Sheet 090
A1: Эксплуатационная карта
D2: Работы пожарного автомобиля за | G2: =Нормы!G3 -> Март 2015 г | L2: Наименование и № подразделения КГ | P2: К Г К У 9 - О П С | S2: 37 - П Ч
A3: Тип,марка,модель Автоцистерна АЦ 40 (130) Государственный регистрационный знак | X3: Х 090 ОМ
A4: Пробег а/м на 1-е число отчетного месяца от начала эксплуатаций: шасси | L4: =Нормы!B99 -> 83913 | N4: км.двигатель | P4: =Нормы!C99 -> 113928.1667 | S4: км.(приведенный)
A5: Остаток топлива в автомобиле на 1-е число отчетного месяца | L5: ='отчёт '!F15 -> 47 | X5: литр.
A6: Заправлено топлива в автомобиль за отчетный месяц | I6: =U88 -> 0 | X6: литр.
A7: Остаток топлива в автомобиле на 1-е число следующего за отчетным месяцем | M7: =X88 -> 46.505 | X7: литр.
A8: Результат расхода топлива за отчетный месяц
E9: фактически | G9: =V88 -> 0.495 | J9: литр. | L9: Экономия _________________литр.
E10: по нормам | G10: =W88 -> 0.495 | J10: литр. | L10: Перерасход _________________литр.
A12: дата | B12: Наименование и место работы автомобиля(То,работа на пожаре,учениях и др) | G12: работа пожарного автомобиля | V12: расход топлива в литрах | X12: Остаток топлива | Y12: подписи
G13: время выезда | I13: время возвращения | K13: показания спидометра перед выездом | L13: пройдено км к месту работы и обратно | M13: на пожарах (в мин) | O13: на учениях (в мин) | Q13: при смене караула (в мин) | S13: на прочих работах | U13: заправлено топлива в автомобиль
G14: часы | H14: минуты | I14: часы | J14: минуты | M14: с насосом | N14: без насоса | O14: с насосом | P14: без насоса | Q14: с насосом | R14: без насоса | S14: с насосом | T14: без насоса | V14: фактически | W14: по нормам | Y14: водителя | Z14: начальника караула
A15: 1 | B15: 2 | G15: 3 | H15: 4 | I15: 5 | J15: 6 | K15: 7 | L15: 8 | M15: 9 | N15: 10 | O15: 11 | P15: 12 | Q15: 13 | R15: 14 | S15: 15 | T15: 16 | U15: 17 | V15: 18 | W15: 19 | X15: 20 | Y15: 21 | Z15: 22
A16: 1,03 | B16: Смена караула | K16: =L4 -> 83913 | L16: =IF(K17="","",K17-K16) ->  | R16: 3 | V16: =W16 -> 0.495 | W16: =IF(L16="",0,L16)*КИЛОМЕТР+(M16+O16+Q16+S16)*НАСОС+(N16+P16+R16+T16)*БЕЗ_НАСОСА -> 0.495 | X16: =Остаток_на_начало_месяца-W16+U16 -> 46.505
V17: =W17 -> 0 | W17: 0 | X17: =IF(W17=0,"",X16-W17+U17) -> 
V18: =W18 -> 0 | W18: 0
V19: 0 | W19: 0
V20: 0 | W20: 0
V21: 0 | W21: 0
V22: 0 | W22: 0
L23: =IF(K24="","",K24-K23) ->  | V23: 0 | W23: 0
L24: =IF(K25="","",K25-K24) ->  | V24: 0 | W24: 0
V25: 0 | W25: 0
V26: 0 | W26: 0
V27: 0 | W27: 0
V28: 0 | W28: 0
V29: 0 | W29: 0
V30: 0 | W30: 0
V31: 0 | W31: 0
V32: 0 | W32: 0
V33: 0 | W33: 0
V34: 0 | W34: 0
V35: 0 | W35: 0
V36: 0 | W36: 0
V37: 0 | W37: 0
V38: 0 | W38: 0
V39: 0 | W39: 0
L40: =IF(K41="","",K41-K40) ->  | V40: 0 | W40: 0
V41: 0 | W41: 0
V42: 0 | W42: 0
V43: 0 | W43: 0
V44: 0 | W44: 0
V45: 0 | W45: 0
V46: 0 | W46: 0
V47: 0 | W47: 0
V48: 0 | W48: =IF(L48="",0,L48)*КИЛОМЕТР+(M48+O48+Q48+S48)*НАСОС+(N48+P48+R48+T48)*БЕЗ_НАСОСА -> 0
V49: 0 | W49: 0 | Y49: Сысуев
V50: 0 | W50: 0 | Y50: Гаврилов
V51: 0 | W51: 0
V52: 0 | W52: 0
V53: 0 | W53: 0
V54: 0 | W54: 0
V55: 0 | W55: 0
V56: 0 | W56: 0
V57: 0 | W57: 0
V58: 0 | W58: 0
V59: 0 | W59: 0
V60: 0 | W60: 0
V61: 0 | W61: 0
V62: 0 | W62: 0
V63: 0 | W63: 0
V64: 0 | W64: 0
V65: 0 | W65: 0
V66: 0 | W66: 0
V67: 0 | W67: 0
V68: 0 | W68: 0
V69: 0 | W69: 0
V70: 0 | W70: 0
V71: 0 | W71: 0
V72: 0 | W72: 0
V73: 0 | W73: 0
V74: 0 | W74: 0
V75: 0 | W75: 0
V76: 0 | W76: 0
V77: 0 | W77: 0
V78: 0 | W78: 0
V79: 0 | W79: 0
L80: =IF(K81="","",K81-K80) ->  | V80: 0 | W80: =IF(L80="",0,L80)*КИЛОМЕТР+(M80+O80+Q80+S80)*НАСОС+(N80+P80+R80+T80)*БЕЗ_НАСОСА -> 0
V81: =W81 -> 0 | W81: 0 | X81: =IF(W81=0,"",X80-W81+U81) -> 
V82: 0 | W82: 0
V83: 0 | W83: 0
V84: 0 | W84: 0
V85: 0 | W85: 0
V86: 0 | W86: 0
V87: 0 | W87: 0 | X87: =IF(W87=0,"",#REF!-W87+U87) -> 
L88: =SUM(L16:L87) -> 0 | M88: 0 | N88: 0 | O88: 0 | P88: 0 | Q88: 0 | R88: 3 | S88: 0 | T88: 0 | U88: 0 | V88: 0.495 | W88: 0.495 | X88: =Остаток_на_начало_месяца+Заправлено-W88 -> 46.505
A89: Израсходовано топлива по элементам работы(в литрах) | L89: =L88*КИЛОМЕТР -> 0 | M89: =M88*НАСОС -> 0 | N89: =N88*БЕЗ_НАСОСА -> 0 | O89: =O88*НАСОС -> 0 | P89: =P88*БЕЗ_НАСОСА -> 0 | Q89: =Q88*НАСОС -> 0 | R89: =R88*БЕЗ_НАСОСА -> 0.495 | S89: =S88*НАСОС -> 0 | T89: =T88*БЕЗ_НАСОСА -> 0
B90: Наработка автомобиля за отчетный месяц в км.(с учетом приведенного) | J90: =(M88+O88+Q88+S88)/60*50+L88 -> 0 | L90: км.
Q91: Текущая норма | V91: Пробег по спидометру, км | Y91: =L88 -> 0
C92: Руководитель подразделения | L92: Старший водитель | Q92: 1 км | T92: 0.498 | V92: Наработка с насосом м.ч. | Y92: =(M88+O88+Q88+S88)/60 -> 0
C93: <_____>______________________2015г. | L93: <_____>______________________ | P93: 2015г. | Q93: 1 мин с насосом | T93: 0.363 | V93: Наработка без насоса | Y93: =N88+P88+R88+T88 -> 3
Q94: 1 мин без насоса | T94: 0.165 | V94: Приведенный пробег | Y94: =Y92*50 -> 0
V95: Общий пробег | Y95: =Y91+Y94 -> 0

Sheet 093
A1: Эксплуатационная карта
D2: Работы пожарного автомобиля за | G2: =Нормы!G3 -> Март 2015 г | L2: Наименование и № подразделения | S2: К Г К У 9 - О П С | V2: 37 - П Ч
A3: Тип,марка,модель Автоцистерна АЦ 40 (130) Государственный регистрационный знак | X3: Х 093 ОМ
A4: Пробег а/м на 1-е число отчетного месяца от начала эксплуатаций: шасси | L4: =Нормы!B100 -> 48210 | N4: км.двигатель | P4: =Нормы!C100 -> 100459.5 | S4: км.(приведенный)
A5: Остаток топлива в автомобиле на 1-е число отчетного месяца | L5: ='отчёт '!F16 -> 51 | X5: литр.
A6: Заправлено топлива в автомобиль за отчетный месяц | I6: =U91 -> 0 | X6: литр.
A7: Остаток топлива в автомобиле на 1-е число следующего за отчетным месяцем | M7: =X91 -> 50.505 | X7: литр.
A8: Результат расхода топлива за отчетный месяц
E9: фактически | G9: =V91 -> 0.495 | J9: литр. | L9: Экономия _________________литр.
E10: по нормам | G10: =W91 -> 0.495 | J10: литр. | L10: Перерасход _________________литр.
A12: дата | B12: Наименование и место работы автомобиля(То,работа на пожаре,учениях и др) | G12: работа пожарного автомобиля | V12: расход топлива в литрах | X12: Остаток топлива | Y12: подписи
G13: время выезда | I13: время возвращения | K13: показания спидометра перед выездом | L13: пройдено км к месту работы и обратно | M13: на пожарах (в мин) | O13: на учениях (в мин) | Q13: при смене караула (в мин) | S13: на прочих работах | U13: заправлено топлива в автомобиль
G14: часы | H14: минуты | I14: часы | J14: минуты | M14: с насосом | N14: без насоса | O14: с насосом | P14: без насоса | Q14: с насосом | R14: без насоса | S14: с насосом | T14: без насоса | V14: фактически | W14: по нормам | Y14: водителя | Z14: начальника караула
A15: 1 | B15: 2 | G15: 3 | H15: 4 | I15: 5 | J15: 6 | K15: 7 | L15: 8 | M15: 9 | N15: 10 | O15: 11 | P15: 12 | Q15: 13 | R15: 14 | S15: 15 | T15: 16 | U15: 17 | V15: 18 | W15: 19 | X15: 20 | Y15: 21 | Z15: 22
A16: 1,03 | B16: Смена караула | K16: =L4 -> 48210 | L16: =IF(K17="","",K17-K16) ->  | R16: 3 | V16: =W16 -> 0.495 | W16: =IF(L16="",0,L16)*КИЛОМЕТР+(M16+O16+Q16+S16)*НАСОС+(N16+P16+R16+T16)*БЕЗ_НАСОСА -> 0.495 | X16: =Остаток_на_начало_месяца-W16+U16 -> 50.505
L17: =IF(K18="","",K18-K17) ->  | V17: =W17 -> 0 | W17: 0 | X17: =IF(W17=0,"",X16-W17+U17) -> 
V18: =W18 -> 0 | W18: 0
V19: 0 | W19: 0
V20: 0 | W20: 0
V21: 0 | W21: 0
V22: 0 | W22: 0
V23: 0 | W23: 0
V24: 0 | W24: 0
V25: 0 | W25: 0
V26: 0 | W26: 0
V27: 0 | W27: 0
V28: 0 | W28: 0
V29: 0 | W29: 0
V30: 0 | W30: 0
V31: 0 | W31: 0
V32: 0 | W32: 0
V33: 0 | W33: 0
V34: 0 | W34: 0
V35: 0 | W35: 0
V36: 0 | W36: 0
L37: =IF(K38="","",K38-K37) ->  | V37: 0 | W37: 0
L38: =IF(K39="","",K39-K38) ->  | V38: 0 | W38: 0
V39: 0 | W39: 0
V40: 0 | W40: 0
V41: 0 | W41: 0
V42: 0 | W42: 0
V43: 0 | W43: 0
V44: 0 | W44: 0
V45: 0 | W45: 0
V46: 0 | W46: 0
V47: 0 | W47: 0
V48: 0 | W48: =IF(L48="",0,L48)*КИЛОМЕТР+(M48+O48+Q48+S48)*НАСОС+(N48+P48+R48+T48)*БЕЗ_НАСОСА -> 0
V49: 0 | W49: 0
V50: 0 | W50: 0
V51: 0 | W51: 0
V52: 0 | W52: 0
V53: 0 | W53: 0
V54: 0 | W54: 0
V55: 0 | W55: 0
V56: 0 | W56: 0
V57: 0 | W57: 0
V58: 0 | W58: 0
V59: 0 | W59: 0
V60: 0 | W60: 0
V61: 0 | W61: 0
V62: 0 | W62: 0
V63: 0 | W63: 0
V64: 0 | W64: 0
V65: 0 | W65: 0
V66: 0 | W66: 0
V67: 0 | W67: 0
V68: 0 | W68: 0
V69: 0 | W69: 0
L70: =IF(K71="","",K71-K70) ->  | V70: 0 | W70: 0
V71: 0 | W71: 0
V72: 0 | W72: 0
V73: 0 | W73: 0
V74: 0 | W74: 0
V75: 0 | W75: 0
V76: 0 | W76: 0
V77: 0 | W77: 0
V78: 0 | W78: 0
V79: 0 | W79: 0
V80: 0 | W80: =IF(L80="",0,L80)*КИЛОМЕТР+(M80+O80+Q80+S80)*НАСОС+(N80+P80+R80+T80)*БЕЗ_НАСОСА -> 0
L81: =IF(K82="","",K82-K81) ->  | V81: =W81 -> 0 | W81: 0 | X81: =IF(W81=0,"",X80-W81+U81) -> 
V82: 0 | W82: 0
V83: 0 | W83: 0
V84: 0 | W84: 0
V85: 0 | W85: 0
V86: 0 | W86: 0
V87: 0 | W87: 0
V88: 0 | W88: 0
V89: 0 | W89: 0 | X89: =IF(W89=0,"",X88-W89+U89) -> 
V90: 0 | W90: 0
A91: ИТОГО за месяц | L91: =SUM(L16:L90) -> 0 | M91: 0 | N91: 0 | O91: 0 | P91: 0 | Q91: 0 | R91: 3 | S91: 0 | T91: 0 | U91: 0 | V91: 0.495 | W91: 0.495 | X91: =Остаток_на_начало_месяца+Заправлено-W91 -> 50.505
A92: Израсходовано топлива по элементам работы(в литрах) | L92: =L91*КИЛОМЕТР -> 0 | M92: =M91*НАСОС -> 0 | N92: =N91*БЕЗ_НАСОСА -> 0 | O92: =O91*НАСОС -> 0 | P92: =P91*БЕЗ_НАСОСА -> 0 | Q92: =Q91*НАСОС -> 0 | R92: =R91*БЕЗ_НАСОСА -> 0.495 | S92: =S91*НАСОС -> 0 | T92: =T91*БЕЗ_НАСОСА -> 0
A93: Наработка а/м за отчетный месяц в км.(с учетом приведенного) | J93: =(M91+O91+Q91+S91)/60*50+L91 -> 0 | L93: км.
Q94: Текущая норма | V94: Пробег по спидометру, км | Y94: =L91 -> 0
C95: Руководитель подразделения | L95: Старший водитель | Q95: 1 км | T95: 0.498 | V95: Наработка с насосом м.ч. | Y95: =(M91+O91+Q91+S91)/60 -> 0
C96: <_____>______________________2015г. | L96: <_____>______________________ | P96: 2015г. | Q96: 1 мин с насосом | T96: 0.363 | V96: Наработка без насоса | Y96: =N91+P91+R91+T91 -> 3
Q97: 1 мин без насоса | T97: 0.165 | V97: Приведенный пробег | Y97: =Y95*50 -> 0
V98: Общий пробег | Y98: =Y94+Y97 -> 0

Sheet 883
A1: Эксплуатационная карта
D2: Работы пожарного автомобиля за | G2: =Нормы!G3 -> Март 2015 г | L2: Наименование и № подразделения | R2: КГКУ 9 - ОПС | V2: 37 - ПЧ
A3: Тип,марка,модель Автоцистерна АЦ 9-40 Камаз (43118) Государственный регистрационный знак | X3: Х 883 ОМ
A4: Пробег автомобиля на 1-е число отчетного месяца от начала эксплуатаций:шасси | L4: =Нормы!B102 -> 48762 | N4: км.двигатель | P4: =Нормы!C102 -> 61530.33333 | S4: км.(приведенный)
A5: Остаток топлива в автомобиле на 1-е число отчетного месяца | K5: ='отчёт '!F22 -> 424 | X5: литр.
A6: Заправлено топлива в автомобиль за отчетный месяц | I6: =U85 -> 0 | X6: литр.
A7: Остаток топлива в автомобиле на 1-е число следующего за отчетным месяцем | M7: =X85 -> 423.175 | X7: литр.
A8: Результат расхода топлива за отчетный месяц
E9: фактически | G9: =V85 -> 0.825 | J9: литр. | L9: Экономия _________________литр.
E10: по нормам | G10: =W85 -> 0.825 | J10: литр. | L10: Перерасход _________________литр.
A12: дата | B12: Наименование и место работы автомобиля(То,работа на пожаре,учениях и др) | G12: работа пожарного автомобиля | V12: расход топлива в литрах | X12: Остаток топлива | Y12: подписи
G13: время выезда | I13: время возвращения | K13: показания спидометра перед выездом | L13: пройдено км к месту работы и обратно | M13: на пожарах (в мин) | O13: на учениях (в мин) | Q13: при смене караула (в мин) | S13: на прочих работах | U13: заправлено топлива в автомобиль
G14: часы | H14: минуты | I14: часы | J14: минуты | M14: с насосом | N14: без насоса | O14: с насосом | P14: без насоса | Q14: с насосом | R14: без насоса | S14: с насосом | T14: без насоса | V14: фактически | W14: по нормам | Y14: водителя | Z14: начальника караула
A15: 1 | B15: 2 | G15: 3 | H15: 4 | I15: 5 | J15: 6 | K15: 7 | L15: 8 | M15: 9 | N15: 10 | O15: 11 | P15: 12 | Q15: 13 | R15: 14 | S15: 15 | T15: 16 | U15: 17 | V15: 18 | W15: 19 | X15: 20 | Y15: 21 | Z15: 22
A16: 1,03 | B16: Смена караула | K16: =L4 -> 48762 | L16: =IF(K17="","",K17-K16) ->  | R16: 5 | V16: =W16 -> 0.825 | W16: =IF(L16="",0,L16)*КИЛОМЕТР+(M16+O16+Q16+S16)*НАСОС+(N16+P16+R16+T16)*БЕЗ_НАСОСА -> 0.825 | X16: =Остаток_на_начало_месяца-W16+U16 -> 423.175
L17: =IF(K18="","",K18-K17) ->  | V17: =W17 -> 0 | W17: 0 | X17: =IF(W17=0,"",X16-W17+U17) -> 
V18: =W18 -> 0 | W18: 0
V19: 0 | W19: 0
V20: 0 | W20: 0
V21: 0 | W21: 0
V22: 0 | W22: 0
V23: 0 | W23: 0
V24: 0 | W24: 0
V25: 0 | W25: 0
V26: 0 | W26: 0
V27: 0 | W27: 0
V28: 0 | W28: 0
V29: 0 | W29: 0
V30: 0 | W30: 0
V31: 0 | W31: 0
V32: 0 | W32: 0
V33: 0 | W33: 0
V34: 0 | W34: 0
V35: 0 | W35: 0
V36: 0 | W36: 0
V37: 0 | W37: 0
V38: 0 | W38: 0
V39: 0 | W39: 0
V40: 0 | W40: 0
V41: 0 | W41: 0
V42: 0 | W42: 0
V43: 0 | W43: 0
V44: 0 | W44: 0
V45: 0 | W45: 0
V46: 0 | W46: 0
V47: 0 | W47: 0
V48: 0 | W48: =IF(L48="",0,L48)*КИЛОМЕТР+(M48+O48+Q48+S48)*НАСОС+(N48+P48+R48+T48)*БЕЗ_НАСОСА -> 0
V49: 0 | W49: 0 | Y49: Шестаков
V50: 0 | W50: 0 | Y50: Ломакин
V51: 0 | W51: 0 | Y51: Прокофьев
V52: 0 | W52: 0 | Y52: Прокофьев
V53: 0 | W53: 0 | Y53: Добров
V54: 0 | W54: 0 | Y54: Добров
V55: 0 | W55: 0 | Y55: Добров
V56: 0 | W56: 0 | Y56: Сысуев
V57: 0 | W57: 0 | Y57: Киселев
V58: 0 | W58: 0 | Y58: Киселев
V59: 0 | W59: 0 | Y59: Киселев
V60: 0 | W60: 0 | Y60: Пачкай
V61: 0 | W61: 0 | Y61: Добров
V62: 0 | W62: 0 | Y62: Добров
V63: 0 | W63: 0 | Y63: Добров
V64: 0 | W64: 0 | Y64: Добров
V65: 0 | W65: 0 | Y65: Добров
V66: 0 | W66: 0 | Y66: Сенкевич
V67: 0 | W67: 0 | Y67: Силонов
V68: 0 | W68: 0
V69: 0 | W69: 0
V70: 0 | W70: 0
V71: 0 | W71: 0
V72: 0 | W72: 0
V73: 0 | W73: 0
V74: 0 | W74: 0
V75: 0 | W75: 0
V76: 0 | W76: 0
V77: 0 | W77: 0
V78: 0 | W78: 0
V79: 0 | W79: 0
L80: =IF(K81="","",K81-K80) ->  | V80: 0 | W80: =IF(L80="",0,L80)*КИЛОМЕТР+(M80+O80+Q80+S80)*НАСОС+(N80+P80+R80+T80)*БЕЗ_НАСОСА -> 0
L81: =IF(K82="","",K82-K81) ->  | V81: =W81 -> 0 | W81: 0 | X81: =IF(W81=0,"",X80-W81+U81) -> 
L82: =IF(K83="","",K83-K82) ->  | V82: 0 | W82: 0
V83: 0 | W83: 0 | X83: =IF(W83=0,"",#REF!-W83+U83) -> 
V84: 0 | W84: 0 | X84: =IF(W84=0,"",#REF!-W84+U84) -> 
A85: ИТОГО за месяц | L85: =SUM(L16:L84) -> 0 | M85: 0 | N85: 0 | O85: 0 | P85: 0 | Q85: 0 | R85: 5 | S85: 0 | T85: 0 | U85: 0 | V85: 0.825 | W85: 0.825 | X85: =Остаток_на_начало_месяца+Заправлено-W85 -> 423.175
A86: Израсходовано топлива по элементам работы(в литрах) | L86: =L85*КИЛОМЕТР -> 0 | M86: =M85*НАСОС -> 0 | N86: =N85*БЕЗ_НАСОСА -> 0 | O86: =O85*НАСОС -> 0 | P86: =P85*БЕЗ_НАСОСА -> 0 | Q86: =Q85*НАСОС -> 0 | R86: =R85*БЕЗ_НАСОСА -> 0.825 | S86: =S85*НАСОС -> 0 | T86: =T85*БЕЗ_НАСОСА -> 0
B87: Наработка автомобиля за отчетный месяц в км.(с учетом приведенного) | J87: =(M85+O85+Q85+S85)/60*50+L85 -> 0 | L87: км.
Q88: Текущая норма | V88: Пробег по спидометру, км | Y88: =L85 -> 0
C89: Руководитель подразделения | L89: Старший водитель | Q89: 1 км | T89: 0.552 | V89: Наработка с насосом м.ч. | Y89: =(M85+O85+Q85+S85)/60 -> 0
C90: <_____>______________________2015г. | L90: <_____>______________________ | P90: 2015г. | Q90: 1 мин с насосом | T90: 0.275 | V90: Наработка без насоса | Y90: =N85+P85+R85+T85 -> 5
Q91: 1 мин без насоса | T91: 0.165 | V91: Приведенный пробег | Y91: =Y89*50 -> 0
V92: Общий пробег | Y92: =Y88+Y91 -> 0

Sheet 007
A1: Эксплуатационная карта
D2: Работы пожарного автомобиля за | G2: =Нормы!G3 -> Март 2015 г | L2: Наименование и № подразделения | R2: К Г К У 9 - О П С | V2: 37 - П Ч
A3: Тип,марка,модель Автоцистерна АЦ 7,5-40 Камаз (43118) Государственный регистрационный знак | X3: У 007 АХ
A4: Пробег автомобиля на 1-е число отчетного месяца от начала эксплуатаций:шасси | L4: =Нормы!B103 -> 17953 | N4: км.двигатель | P4: =Нормы!C103 -> 25733.83333 | S4: км.(приведенный)
A5: Остаток топлива в автомобиле на 1-е число отчетного месяца | K5: ='отчёт '!F23 -> 158 | X5: литр.
A6: Заправлено топлива в автомобиль за отчетный месяц | I6: =U95 -> 0 | X6: литр.
A7: Остаток топлива в автомобиле на 1-е число следующего за отчетным месяцем | M7: =X95 -> 157.175 | X7: литр.
A8: Результат расхода топлива за отчетный месяц
E9: фактически | G9: =V95 -> 0.825 | J9: литр. | L9: Экономия _________________литр.
E10: по нормам | G10: =W95 -> 0.825 | J10: литр. | L10: Перерасход _________________литр.
A12: дата | B12: Наименование и место работы автомобиля(То,работа на пожаре,учениях и др) | G12: работа пожарного автомобиля | V12: расход топлива в литрах | X12: Остаток топлива | Y12: подписи
G13: время выезда | I13: время возвращения | K13: показания спидометра перед выездом | L13: пройдено км к месту работы и обратно | M13: на пожарах(в мин) | O13: на учениях (в мин) | Q13: при смене караула (в мин) | S13: на прочих работах | U13: заправлено топлива в автомобиль
G14: часы | H14: минуты | I14: часы | J14: минуты | M14: с насосом | N14: без насоса | O14: с насосом | P14: без насоса | Q14: с насосом | R14: без насоса | S14: с насосом | T14: без насоса | V14: фактически | W14: по нормам | Y14: водителя | Z14: начальника караула
A15: 1 | B15: 2 | G15: 3 | H15: 4 | I15: 5 | J15: 6 | K15: 7 | L15: 8 | M15: 9 | N15: 10 | O15: 11 | P15: 12 | Q15: 13 | R15: 14 | S15: 15 | T15: 16 | U15: 17 | V15: 18 | W15: 19 | X15: 20 | Y15: 21 | Z15: 22
A16: 1,03 | B16: Смена караула | K16: =L4 -> 17953 | L16: =IF(K17="","",K17-K16) ->  | R16: 5 | V16: =W16 -> 0.825 | W16: =IF(L16="",0,L16)*КИЛОМЕТР+(M16+O16+Q16+S16)*НАСОС+(N16+P16+R16+T16)*БЕЗ_НАСОСА -> 0.825 | X16: =Остаток_на_начало_месяца-W16+U16 -> 157.175
V17: =W17 -> 0 | W17: 0 | X17: =IF(W17=0,"",X16-W17+U17) -> 
V18: =W18 -> 0 | W18: 0
V19: 0 | W19: 0
V20: 0 | W20: 0
V21: 0 | W21: 0
V22: 0 | W22: =IF(L22="",0,L22)*КИЛОМЕТР+(M22+O22+Q22+S22)*НАСОС+(N22+P22+R22+T22)*БЕЗ_НАСОСА -> 0
V23: 0 | W23: 0
V24: 0 | W24: 0
V25: 0 | W25: 0
V26: 0 | W26: 0
V27: 0 | W27: 0
V28: 0 | W28: 0
V29: 0 | W29: 0
V30: 0 | W30: 0
V31: 0 | W31: 0
V32: =W32 -> 0 | W32: 0
V33: =W33 -> 0 | W33: 0
V34: 0 | W34: 0
V35: 0 | W35: 0
V36: 0 | W36: 0
V37: 0 | W37: 0
V38: 0 | W38: 0
V39: 0 | W39: 0
V40: 0 | W40: 0
V41: 0 | W41: 0
V42: 0 | W42: 0
V43: 0 | W43: 0
V44: 0 | W44: 0
V45: 0 | W45: 0
V46: 0 | W46: 0
V47: 0 | W47: 0
V48: 0 | W48: =IF(L48="",0,L48)*КИЛОМЕТР+(M48+O48+Q48+S48)*НАСОС+(N48+P48+R48+T48)*БЕЗ_НАСОСА -> 0
V49: 0 | W49: 0 | Y49: Шестаков
V50: 0 | W50: 0 | Y50: Гаврилов
V51: 0 | W51: 0 | Y51: Прокофьев
V52: 0 | W52: 0 | Y52: Прокофьев
V53: 0 | W53: 0 | X53: =IF(W53=0,"",X52-W53+U53) ->  | Y53: Егоров
V54: 0 | W54: 0 | Y54: Егоров
V55: 0 | W55: 0 | Y55: Сысуев
V56: 0 | W56: =IF(L56="",0,L56)*КИЛОМЕТР+(M56+O56+Q56+S56)*НАСОС+(N56+P56+R56+T56)*БЕЗ_НАСОСА -> 0 | Y56: Киселев
V57: 0 | W57: =IF(L57="",0,L57)*КИЛОМЕТР+(M57+O57+Q57+S57)*НАСОС+(N57+P57+R57+T57)*БЕЗ_НАСОСА -> 0 | Y57: Пачкай
V58: 0 | W58: 0 | Y58: Пачкай
V59: 0 | W59: 0 | Y59: Кравцов
V60: 0 | W60: 0 | Y60: Кравцов
V61: 0 | W61: 0 | Y61: Кравцов
V62: 0 | W62: 0 | Y62: Сенкевич
V63: 0 | W63: 0 | Y63: Силонов
V64: 0 | W64: 0 | Y64: Силонов
V65: 0 | W65: 0 | Y65: Силонов
V66: 0 | W66: 0 | Y66: Силонов
V67: 0 | W67: 0 | Y67: Комиссаров
V68: 0 | W68: 0 | Y68: Егоров
V69: 0 | W69: 0 | Y69: Егоров
V70: 0 | W70: 0 | Y70: Егоров
V71: 0 | W71: 0 | Y71: Шестаков
V72: 0 | W72: 0 | Y72: Ломакин
V73: 0 | W73: 0
V74: 0 | W74: 0
V75: 0 | W75: 0
V76: 0 | W76: 0
V77: 0 | W77: 0
V78: 0 | W78: 0
V79: 0 | W79: 0
L80: =IF(K81="","",K81-K80) ->  | V80: 0 | W80: =IF(L80="",0,L80)*КИЛОМЕТР+(M80+O80+Q80+S80)*НАСОС+(N80+P80+R80+T80)*БЕЗ_НАСОСА -> 0
V81: =W81 -> 0 | W81: 0 | X81: =IF(W81=0,"",X80-W81+U81) -> 
V82: 0 | W82: 0
V83: 0 | W83: 0
V84: 0 | W84: 0
V85: 0 | W85: 0
V86: 0 | W86: 0
V87: 0 | W87: 0
V88: 0 | W88: 0
V89: 0 | W89: 0
V90: 0 | W90: 0
V91: 0 | W91: 0
V92: 0 | W92: 0
V93: 0 | W93: 0
V94: 0 | W94: 0
A95: ИТОГО за месяц | L95: =SUM(L16:L94) -> 0 | M95: 0 | N95: 0 | O95: 0 | P95: 0 | Q95: 0 | R95: 5 | S95: 0 | T95: 0 | U95: 0 | V95: 0.825 | W95: 0.825 | X95: =Остаток_на_начало_месяца+Заправлено-W95 -> 157.175
A96: Израсходовано топлива по элементам работы(в литрах) | L96: =L95*КИЛОМЕТР -> 0 | M96: =M95*НАСОС -> 0 | N96: =N95*БЕЗ_НАСОСА -> 0 | O96: =O95*НАСОС -> 0 | P96: =P95*БЕЗ_НАСОСА -> 0 | Q96: =Q95*НАСОС -> 0 | R96: =R95*БЕЗ_НАСОСА -> 0.825 | S96: =S95*НАСОС -> 0 | T96: =T95*БЕЗ_НАСОСА -> 0
B97: Наработка автомобиля за отчетный месяц в км.(с учетом приведенного) | J97: =(M95+O95+Q95+S95)/60*50+L95 -> 0 | L97: км.
Q98: Текущая норма | V98: Пробег по спидометру, км | Y98: =L95 -> 0
C99: Руководитель подразделения | L99: Старший водитель | Q99: 1 км | T99: 0.556 | V99: Наработка с насосом м.ч. | Y99: =(M95+O95+Q95+S95)/60 -> 0
C100: <_____>______________________2015г. | L100: <_____>______________________ | P100: 2015г. | Q100: 1 мин с насосом | T100: 0.275 | V100: Наработка без насоса | Y100: =N95+P95+R95+T95 -> 5
Q101: 1 мин без насоса | T101: 0.165 | V101: Приведенный пробег | Y101: =Y99*50 -> 0
V102: Общий пробег | Y102: =Y98+Y101 -> 0

Sheet 351
A1: Эксплуатационная карта
D2: Работы пожарного автомобиля за | G2: =Нормы!G3 -> Март 2015 г | L2: Наименование и № подразделения | R2: КГКУ 9- ОПС | V2: 37 - П Ч
A3: Тип,марка,модель Автолестница АЛ 30 Камаз (4326) ПМ 506 С Государственный регистрационный знак | X3: Х 351 АР
A4: Пробег а/м на 1-е число отчетного месяца от начала эксплуатаций:шасси | L4: =Нормы!B101 -> 4440 | N4: км.двигатель | P4: =Нормы!C101 -> 11567.5 | S4: км.(приведенный)
A5: Остаток топлива в автомобиле на 1-е число отчетного месяца | L5: ='отчёт '!F18 -> 94 | X5: литр.
A6: Заправлено топлива в автомобиль за отчетный месяц | I6: =U91 -> 0 | X6: литр.
A7: Остаток топлива в автомобиле на 1-е число следующего за отчетным месяцем | M7: =X91 -> 91.965 | X7: литр.
A8: Результат расхода топлива за отчетный месяц
E9: фактически | G9: =V91 -> 2.035 | J9: литр. | L9: Экономия _________________литр.
E10: по нормам | G10: =W91 -> 2.035 | J10: литр. | L10: Перерасход _________________литр.
A12: дата | B12: Наименование и место работы автомобиля(То,работа на пожаре,учениях и др) | G12: работа пожарного автомобиля | V12: расход топлива в литрах | X12: Остаток топлива | Y12: подписи
G13: время выезда | I13: время возвращения | K13: показания спидометра перед выездом | L13: пройдено км к месту работы и обратно | M13: на пожарах (в мин) | O13: на учениях (в мин) | Q13: при смене караула (в мин) | S13: на прочих работах | U13: заправлено топлива в автомобиль
G14: часы | H14: минуты | I14: часы | J14: минуты | M14: с насосом | N14: без насоса | O14: с насосом | P14: без насоса | Q14: с насосом | R14: без насоса | S14: с насосом | T14: без насоса | V14: фактически | W14: по нормам | Y14: водителя | Z14: начальника караула
A15: 1 | B15: 2 | G15: 3 | H15: 4 | I15: 5 | J15: 6 | K15: 7 | L15: 8 | M15: 9 | N15: 10 | O15: 11 | P15: 12 | Q15: 13 | R15: 14 | S15: 15 | T15: 16 | U15: 17 | V15: 18 | W15: 19 | X15: 20 | Y15: 21 | Z15: 22
A16: 1,03 | B16: Смена караула | K16: =L4 -> 4440 | L16: =IF(K17="","",K17-K16) ->  | Q16: 7 | R16: 3 | V16: =W16 -> 2.035 | W16: =IF(L16="",0,L16)*КИЛОМЕТР+(M16+O16+Q16+S16)*НАСОС+(N16+P16+R16+T16)*БЕЗ_НАСОСА -> 2.035 | X16: =Остаток_на_начало_месяца-W16+U16 -> 91.965
L17: =IF(K18="","",K18-K17) ->  | V17: =W17 -> 0 | W17: 0 | X17: =IF(W17=0,"",X16-W17+U17) -> 
V18: =W18 -> 0 | W18: 0
V19: 0 | W19: 0
V20: 0 | W20: 0
V21: 0 | W21: 0
V22: 0 | W22: 0
V23: 0 | W23: 0 | X23: =IF(W23=0,"",X22-W23+U23) -> 
V24: 0 | W24: 0 | X24: =IF(W24=0,"",X23-W24+U24) -> 
V25: 0 | W25: 0
V26: 0 | W26: 0
V27: 0 | W27: 0 | X27: =IF(W27=0,"",X26-W27+U27) -> 
V28: 0 | W28: 0 | X28: =IF(W28=0,"",X27-W28+U28) -> 
V29: 0 | W29: 0
V30: 0 | W30: 0
V31: 0 | W31: 0
V32: 0 | W32: 0
V33: 0 | W33: 0
V34: 0 | W34: 0
V35: 0 | W35: 0
V36: 0 | W36: 0
V37: 0 | W37: 0
L38: =IF(K39="","",K39-K38) ->  | V38: 0 | W38: 0
V39: 0 | W39: 0
V40: 0 | W40: 0
V41: 0 | W41: 0
V42: 0 | W42: 0
V43: 0 | W43: 0
V44: 0 | W44: 0
V45: 0 | W45: 0
V46: 0 | W46: 0
V47: 0 | W47: =IF(L47="",0,L47)*КИЛОМЕТР+(M47+O47+Q47+S47)*НАСОС+(N47+P47+R47+T47)*БЕЗ_НАСОСА -> 0
V48: 0 | W48: =IF(L48="",0,L48)*КИЛОМЕТР+(M48+O48+Q48+S48)*НАСОС+(N48+P48+R48+T48)*БЕЗ_НАСОСА -> 0
V49: 0 | W49: 0 | Y49: Ломакин
V50: 0 | W50: 0 | Y50: Ломакин
V51: 0 | W51: 0 | Y51: Прокофьев
V52: 0 | W52: 0 | Y52: Кравцов
V53: 0 | W53: 0 | Y53: Сысуев
V54: 0 | W54: 0 | Y54: Гаврилов
V55: 0 | W55: 0
V56: 0 | W56: 0
V57: 0 | W57: 0
V58: 0 | W58: 0
V59: 0 | W59: 0
V60: 0 | W60: 0
V61: 0 | W61: 0
V62: 0 | W62: 0
V63: 0 | W63: 0
V64: 0 | W64: 0
V65: 0 | W65: 0
V66: 0 | W66: 0
V67: 0 | W67: =IF(L67="",0,L67)*КИЛОМЕТР+(M67+O67+Q67+S67)*НАСОС+(N67+P67+R67+T67)*БЕЗ_НАСОСА -> 0
V68: 0 | W68: =IF(L68="",0,L68)*КИЛОМЕТР+(M68+O68+Q68+S68)*НАСОС+(N68+P68+R68+T68)*БЕЗ_НАСОСА -> 0
V69: 0 | W69: 0
V70: 0 | W70: 0
V71: 0 | W71: 0
V72: 0 | W72: 0
V73: 0 | W73: 0
V74: 0 | W74: 0
V75: 0 | W75: 0
V76: 0 | W76: 0
V77: 0 | W77: 0
V78: 0 | W78: 0
V79: 0 | W79: 0
L80: =IF(K81="","",K81-K80) ->  | V80: 0 | W80: =IF(L80="",0,L80)*КИЛОМЕТР+(M80+O80+Q80+S80)*НАСОС+(N80+P80+R80+T80)*БЕЗ_НАСОСА -> 0
V81: =W81 -> 0 | W81: 0
V82: 0 | W82: 0
V83: 0 | W83: 0
V84: 0 | W84: 0
V85: 0 | W85: 0
V86: 0 | W86: 0
V87: 0 | W87: 0
V88: 0 | W88: 0
V89: 0 | W89: 0
V90: 0 | W90: 0 | X90: =IF(W90=0,"",X89-W90+U90) -> 
A91: ИТОГО за месяц | L91: =SUM(L16:L90) -> 0 | M91: 0 | N91: 0 | O91: 0 | P91: 0 | Q91: 7 | R91: 3 | S91: 0 | T91: 0 | U91: 0 | V91: 2.035 | W91: 2.035 | X91: =Остаток_на_начало_месяца+Заправлено-W91 -> 91.965
A92: Израсходовано топлива по элементам работы(в литрах) | L92: =L91*КИЛОМЕТР -> 0 | M92: =M91*НАСОС -> 0 | N92: =N91*БЕЗ_НАСОСА -> 0 | O92: =O91*НАСОС -> 0 | P92: =P91*БЕЗ_НАСОСА -> 0 | Q92: =Q91*НАСОС -> 1.54 | R92: =R91*БЕЗ_НАСОСА -> 0.495 | S92: =S91*НАСОС -> 0 | T92: =T91*БЕЗ_НАСОСА -> 0
B93: Наработка автомобиля за отчетный месяц в км.(с учетом приведенного) | J93: =(M91+O91+Q91+S91)/60*50+L91 -> 5.833333333 | L93: км.
Q94: Текущая норма | V94: Пробег по спидометру, км | Y94: =L91 -> 0
C95: Руководитель подразделения | L95: Старший водитель | Q95: 1 км | T95: 0.48 | V95: Наработка с насосом м.ч. | Y95: =(M91+O91+Q91+S91)/60 -> 0.1166666667
C96: <_____>______________________2015г. | L96: <_____>______________________ | P96: 2015г. | Q96: 1 мин с насосом | T96: 0.22 | V96: Наработка без насоса | Y96: =N91+P91+R91+T91 -> 3
Q97: 1 мин без насоса | T97: 0.165 | V97: Приведенный пробег | Y97: =Y95*50 -> 5.833333333
V98: Общий пробег | Y98: =Y94+Y97 -> 5.833333333

Sheet ПНС -100
A1: Эксплуатационная карта
D2: Работы пожарного автомобиля за | G2: =Нормы!G3 -> Март 2015 г | L2: Наименование и № подразделения | R2: КГКУ 9- ОПС | U2: 37 - П Ч
A3: Тип,марка,модель Насосная станция ПНС 100 (5350) Государственный регистрационный знак | X3: О 992 АХ
A4: Пробег автомобиля на 1-е число отчетного месяца от начала эксплуатаций:шасси | L4: =Нормы!B105 -> 2405 | N4: км.двигатель | S4: км.(приведенный)
A5: Остаток топлива в автомобиле на 1-е число отчетного месяца | I5: ='отчёт '!F25 -> 156 | X5: литр.
A6: Заправлено топлива в автомобиль за отчетный месяц | I6: =U91 -> 0 | X6: литр.
A7: Остаток топлива в автомобиле на 1-е число следующего за отчетным месяцем | M7: =X91 -> 155.175 | X7: литр.
A8: Результат расхода топлива за отчетный месяц
E9: фактически | G9: =V91 -> 0.825 | J9: литр. | L9: Экономия _________________литр.
E10: по нормам | G10: =W91 -> 0.825 | J10: литр. | L10: Перерасход _________________литр.
A12: дата | B12: Наименование и место работы автомобиля(То,работа на пожаре,учениях и др) | G12: работа пожарного автомобиля | V12: расход топлива в литрах | X12: Остаток топлива | Y12: подписи
G13: время выезда | I13: время возвращения | K13: показания спидометра перед выездом | L13: пройдено км к месту работы и обратно | M13: на пожарах(в мин) | O13: на учениях (в мин) | Q13: при смене караула (в мин) | S13: на прочих работах | U13: заправлено топлива в автомобиль
G14: часы | H14: минуты | I14: часы | J14: минуты | M14: с насосом | N14: без насоса | O14: с насосом | P14: без насоса | Q14: с насосом | R14: без насоса | S14: с насосом | T14: без насоса | V14: фактически | W14: по нормам | Y14: водителя | Z14: начальника караула
A15: 1 | B15: 2 | G15: 3 | H15: 4 | I15: 5 | J15: 6 | K15: 7 | L15: 8 | M15: 9 | N15: 10 | O15: 11 | P15: 12 | Q15: 13 | R15: 14 | S15: 15 | T15: 16 | U15: 17 | V15: 18 | W15: 19 | X15: 20 | Y15: 21 | Z15: 22
A16: 1,03 | B16: Смена караула | K16: 2405 | L16: =IF(K17="","",K17-K16) ->  | R16: 5 | V16: =W16 -> 0.825 | W16: =IF(L16="",0,L16)*КИЛОМЕТР+(M16+O16+Q16+S16)*НАСОС+(N16+P16+R16+T16)*БЕЗ_НАСОСА -> 0.825 | X16: =Остаток_на_начало_месяца-W16+U16 -> 155.175
V17: =W17 -> 0 | W17: 0 | X17: =IF(W17=0,"",X16-W17+U17) -> 
V18: =W18 -> 0 | W18: 0
V19: 0 | W19: 0
V20: 0 | W20: 0
V21: 0 | W21: 0
V22: 0 | W22: 0
V23: 0 | W23: 0
V24: 0 | W24: 0
V25: =W25 -> 0 | W25: 0
V26: 0 | W26: 0
V27: 0 | W27: =IF(L27="",0,L27)*КИЛОМЕТР+(M27+O27+Q27+S27)*НАСОС+(N27+P27+R27+T27)*БЕЗ_НАСОСА -> 0
V28: 0 | W28: 0
V29: 0 | W29: 0
V30: 0 | W30: 0
V31: 0 | W31: 0
V32: 0 | W32: 0
V33: 0 | W33: 0
V34: 0 | W34: 0
V35: 0 | W35: 0
L36: =IF(K37="","",K37-K36) ->  | V36: 0 | W36: 0
V37: 0 | W37: 0
V38: 0 | W38: 0
V39: 0 | W39: 0
V40: 0 | W40: 0
V41: 0 | W41: 0
V42: 0 | W42: 0
V43: 0 | W43: 0
V44: 0 | W44: 0
V45: 0 | W45: 0
V46: 0 | W46: 0
V47: 0 | W47: 0
V48: 0 | W48: =IF(L48="",0,L48)*КИЛОМЕТР+(M48+O48+Q48+S48)*НАСОС+(N48+P48+R48+T48)*БЕЗ_НАСОСА -> 0
V49: 0 | W49: 0
V50: 0 | W50: 0
V51: 0 | W51: 0
V52: 0 | W52: 0
V53: 0 | W53: 0
V54: 0 | W54: 0
V55: 0 | W55: 0
V56: 0 | W56: 0
V57: 0 | W57: 0
V58: 0 | W58: 0
V59: 0 | W59: 0
V60: 0 | W60: 0
V61: 0 | W61: 0
V62: 0 | W62: 0
V63: 0 | W63: 0
V64: 0 | W64: 0
V65: 0 | W65: 0
V66: 0 | W66: 0
V67: 0 | W67: 0
V68: 0 | W68: 0
V69: 0 | W69: 0
V70: 0 | W70: 0
V71: 0 | W71: 0
V72: 0 | W72: 0
V73: 0 | W73: 0
V74: 0 | W74: 0
V75: 0 | W75: 0
V76: 0 | W76: 0
V77: 0 | W77: 0
V78: 0 | W78: 0
V79: 0 | W79: 0
L80: =IF(K81="","",K81-K80) ->  | V80: 0 | W80: =IF(L80="",0,L80)*КИЛОМЕТР+(M80+O80+Q80+S80)*НАСОС+(N80+P80+R80+T80)*БЕЗ_НАСОСА -> 0
V81: =W81 -> 0 | W81: 0 | X81: =IF(W81=0,"",X80-W81+U81) -> 
V82: 0 | W82: 0
V83: 0 | W83: 0
V84: 0 | W84: 0
V85: 0 | W85: 0
V86: 0 | W86: 0
V87: 0 | W87: 0
V88: 0 | W88: 0
V89: 0 | W89: 0 | X89: =IF(W89=0,"",X88-W89+U89) -> 
V90: 0 | W90: 0
A91: ИТОГО за месяц | L91: =SUM(L16:L90) -> 0 | M91: =SUM(M16:M90) -> 0 | N91: 0 | O91: 0 | P91: 0 | Q91: 0 | R91: 5 | S91: 0 | T91: 0 | U91: 0 | V91: 0.825 | W91: 0.825 | X91: =Остаток_на_начало_месяца+Заправлено-W91 -> 155.175
A92: Израсходовано топлива по элементам работы(в литрах) | L92: =L91*КИЛОМЕТР -> 0 | M92: =M91*НАСОС -> 0 | N92: =N91*БЕЗ_НАСОСА -> 0 | O92: =O91*НАСОС -> 0 | P92: =P91*БЕЗ_НАСОСА -> 0 | Q92: =Q91*НАСОС -> 0 | R92: =R91*БЕЗ_НАСОСА -> 0.825 | S92: =S91*НАСОС -> 0 | T92: =T91*БЕЗ_НАСОСА -> 0
A93: Наработка а/м за отчетный месяц в км.(с учетом приведенного) | J93: =(M91+O91+Q91+S91)/60*50+L91 -> 0 | L93: км.
Q94: Текущая норма | V94: Пробег по спидометру, км | Y94: =L91 -> 0
C95: Руководитель подразделения | L95: Старший водитель | Q95: 1 км | T95: 0.526 | V95: Наработка с насосом м.ч. | Y95: =(M91+O91+Q91+S91)/60 -> 0
C96: <_____>______________________2015г. | L96: <_____>______________________ | P96: 2015г. | Q96: 1 мин с насосом | V96: Наработка без насоса | Y96: =N91+P91+R91+T91 -> 5
Q97: 1 мин без насоса | T97: 0.165 | V97: Приведенный пробег | Y97: =Y95*50 -> 0
V98: Общий пробег | Y98: =Y94+Y97 -> 0

Sheet ПНС-100 дизель
A1: Эксплуатационная карта
D2: Работы пожарного автомобиля за | G2: =Нормы!G3 -> Март 2015 г | L2: Наименование и № подразделения | R2: КГКУ 9- ОПС | U2: 37- ПЧ
A3: Тип,марка,модель Насосная станция ПНС 100 (5350) Дизель ЯМЗ 238 Д Государственный регистрационный знак
A4: Пробег автомобиля на 1-е число отчетного месяца | N4: км.двигатель | S4: км.(приведенный)
A5: Остаток топлива в автомобиле на 1-е число отчетного месяца | K5: ='отчёт '!F26 -> 146 | X5: литр.
A6: Заправлено топлива в автомобиль за отчетный месяц | I6: =U91 -> 0 | X6: литр.
A7: Остаток топлива в автомобиле на 1-е число следующего за отчетным месяцем | M7: =X91 -> 144.35 | X7: литр.
A8: Результат расхода топлива за отчетный месяц
E9: фактически | G9: =V91 -> 1.65 | J9: литр. | L9: Экономия _________________литр.
E10: по нормам | G10: =W91 -> 1.65 | J10: литр. | L10: Перерасход _________________литр.
A12: дата | B12: Наименование и место работы автомобиля(То,работа на пожаре,учениях и др) | G12: работа пожарного автомобиля | V12: расход топлива в литрах | X12: Остаток топлива | Y12: подписи
G13: время выезда | I13: время возвращения | K13: показания спидометра перед выездом | L13: пройдено км к месту работы и обратно | M13: на пожарах(в мин) | O13: на учениях (в мин) | Q13: при смене караула (в мин) | S13: на прочих работах | U13: заправлено топлива в автомобиль
G14: часы | H14: минуты | I14: часы | J14: минуты | M14: с насосом | N14: без насоса | O14: с насосом | P14: без насоса | Q14: с насосом | R14: без насоса | S14: с насосом | T14: без насоса | V14: фактически | W14: по нормам | Y14: водителя | Z14: начальника караула
A15: 1 | B15: 2 | G15: 3 | H15: 4 | I15: 5 | J15: 6 | K15: 7 | L15: 8 | M15: 9 | N15: 10 | O15: 11 | P15: 12 | Q15: 13 | R15: 14 | S15: 15 | T15: 16 | U15: 17 | V15: 18 | W15: 19 | X15: 20 | Y15: 21 | Z15: 22
A16: 1,03 | B16: Смена караула | K16: =K4 -> 0 | L16: =IF(K17="","",K17-K16) ->  | R16: 10 | V16: =W16 -> 1.65 | W16: =IF(L16="",0,L16)*КИЛОМЕТР+(M16+O16+Q16+S16)*НАСОС+(N16+P16+R16+T16)*БЕЗ_НАСОСА -> 1.65 | X16: =Остаток_на_начало_месяца-W16+U16 -> 144.35
V17: =W17 -> 0 | W17: 0 | X17: =IF(W17=0,"",X16-W17+U17) -> 
V18: =W18 -> 0 | W18: 0
V19: 0 | W19: 0
V20: 0 | W20: 0
V21: 0 | W21: 0
V22: 0 | W22: 0
V23: 0 | W23: 0
V24: 0 | W24: 0
V25: 0 | W25: 0
V26: 0 | W26: 0
V27: 0 | W27: 0
V28: 0 | W28: 0
V29: 0 | W29: 0
V30: 0 | W30: 0
V31: 0 | W31: 0
V32: 0 | W32: 0
V33: 0 | W33: 0
V34: 0 | W34: 0
V35: 0 | W35: 0
V36: 0 | W36: 0
V37: 0 | W37: 0
V38: 0 | W38: 0
V39: 0 | W39: 0
V40: 0 | W40: 0
V41: 0 | W41: 0
V42: 0 | W42: 0
V43: 0 | W43: 0
V44: 0 | W44: 0
V45: 0 | W45: 0
V46: 0 | W46: 0
V47: 0 | W47: 0
V48: 0 | W48: =IF(L48="",0,L48)*КИЛОМЕТР+(M48+O48+Q48+S48)*НАСОС+(N48+P48+R48+T48)*БЕЗ_НАСОСА -> 0
V49: 0 | W49: 0
V50: 0 | W50: 0
V51: 0 | W51: 0
V52: 0 | W52: 0
V53: 0 | W53: 0
V54: 0 | W54: 0
V55: 0 | W55: 0
V56: 0 | W56: 0
V57: 0 | W57: 0
V58: 0 | W58: 0
V59: 0 | W59: 0
V60: 0 | W60: 0
V61: 0 | W61: 0
V62: 0 | W62: 0
V63: 0 | W63: 0
V64: 0 | W64: 0
V65: 0 | W65: 0
V66: 0 | W66: 0
V67: 0 | W67: 0
V68: 0 | W68: 0
V69: 0 | W69: 0
V70: 0 | W70: 0
V71: 0 | W71: 0
V72: 0 | W72: 0
V73: 0 | W73: 0
V74: 0 | W74: 0
V75: 0 | W75: 0
V76: 0 | W76: 0
V77: 0 | W77: 0
V78: 0 | W78: 0
V79: 0 | W79: 0
L80: =IF(K81="","",K81-K80) ->  | V80: 0 | W80: =IF(L80="",0,L80)*КИЛОМЕТР+(M80+O80+Q80+S80)*НАСОС+(N80+P80+R80+T80)*БЕЗ_НАСОСА -> 0
V81: =W81 -> 0 | W81: 0 | X81: =IF(W81=0,"",X80-W81+U81) -> 
V82: 0 | W82: 0
V83: 0 | W83: 0
V84: 0 | W84: 0
V85: 0 | W85: 0
V86: 0 | W86: 0
V87: 0 | W87: 0
V88: 0 | W88: 0
V89: 0 | W89: 0 | X89: =IF(W89=0,"",X88-W89+U89) -> 
V90: 0 | W90: 0
A91: ИТОГО за месяц | L91: =SUM(L16:L90) -> 0 | M91: 0 | N91: 0 | O91: 0 | P91: 0 | Q91: 0 | R91: 10 | S91: 0 | T91: 0 | U91: 0 | V91: 1.65 | W91: 1.65 | X91: =Остаток_на_начало_месяца+Заправлено-W91 -> 144.35
A92: Израсходовано топлива по элементам работы(в литрах) | L92: =L91*КИЛОМЕТР -> 0 | M92: =M91*НАСОС -> 0 | N92: =N91*БЕЗ_НАСОСА -> 0 | O92: =O91*НАСОС -> 0 | P92: =P91*БЕЗ_НАСОСА -> 0 | Q92: =Q91*НАСОС -> 0 | R92: =R91*БЕЗ_НАСОСА -> 1.65 | S92: =S91*НАСОС -> 0 | T92: =T91*БЕЗ_НАСОСА -> 0
B93: Наработка автомобиля за отчетный месяц в км.(с учетом приведенного) | L93: км.
Q94: Текущая норма | V94: Пробег по спидометру, км | Y94: =L91 -> 0
C95: Руководитель подразделения | L95: Старший водитель | Q95: 1 км | V95: Наработка с насосом м.ч. | Y95: =(M91+O91+Q91+S91)/60 -> 0
C96: <_____>______________________2015г. | L96: <_____>______________________ | P96: 2015г. | Q96: 1 мин с насосом | T96: 0.73 | V96: Наработка без насоса | Y96: =N91+P91+R91+T91 -> 10
Q97: 1 мин без насоса | T97: 0.165 | V97: Приведенный пробег
V98: Общий пробег

Sheet АР-2(5350)
A1: Эксплуатационная карта
D2: Работы пожарного автомобиля за | G2: =Нормы!G3 -> Март 2015 г | L2: Наименование и № подразделения КГ | P2: К Г К У 9 - О П С | S2: 37 - П Ч
A3: Тип,марка,модель Автомобиль рукавный АР-2 (5350) Государственный регистрационный знак | X3: Н 077 КР
A4: Пробег а/м на 1-е число отчетного месяца от начала эксплуатаций: шасси | L4: =Нормы!B104 -> 2360 | N4: км.двигатель | S4: км.(приведенный)
A5: Остаток топлива в автомобиле на 1-е число отчетного месяца | L5: ='отчёт '!F27 -> 128 | X5: литр.
A6: Заправлено топлива в автомобиль за отчетный месяц | I6: =U91 -> 0 | X6: литр.
A7: Остаток топлива в автомобиле на 1-е число следующего за отчетным месяцем | M7: =X91 -> 127.175 | X7: литр.
A8: Результат расхода топлива за отчетный месяц
E9: фактически | G9: =V91 -> 0.825 | J9: литр. | L9: Экономия _________________литр.
E10: по нормам | G10: =W91 -> 0.825 | J10: литр. | L10: Перерасход _________________литр.
A12: дата | B12: Наименование и место работы автомобиля(То,работа на пожаре,учениях и др) | G12: работа пожарного автомобиля | V12: расход топлива в литрах | X12: Остаток топлива | Y12: подписи
G13: время выезда | I13: время возвращения | K13: показания спидометра перед выездом | L13: пройдено км к месту работы и обратно | M13: на пожарах (в мин) | O13: на учениях (в мин) | Q13: при смене караула (в мин) | S13: на прочих работах | U13: заправлено топлива в автомобиль
G14: часы | H14: минуты | I14: часы | J14: минуты | M14: с насосом | N14: без насоса | O14: с насосом | P14: без насоса | Q14: с насосом | R14: без насоса | S14: с насосом | T14: без насоса | V14: фактически | W14: по нормам | Y14: водителя | Z14: начальника караула
A15: 1 | B15: 2 | G15: 3 | H15: 4 | I15: 5 | J15: 6 | K15: 7 | L15: 8 | M15: 9 | N15: 10 | O15: 11 | P15: 12 | Q15: 13 | R15: 14 | S15: 15 | T15: 16 | U15: 17 | V15: 18 | W15: 19 | X15: 20 | Y15: 21 | Z15: 22
A16: 1,03 | B16: Смена караула | K16: =L4 -> 2360 | L16: =IF(K17="","",K17-K16) ->  | R16: 5 | V16: =W16 -> 0.825 | W16: =IF(L16="",0,L16)*КИЛОМЕТР+(M16+O16+Q16+S16)*НАСОС+(N16+P16+R16+T16)*БЕЗ_НАСОСА -> 0.825 | X16: =Остаток_на_начало_месяца-W16+U16 -> 127.175
V17: =W17 -> 0 | W17: =IF(L17="",0,L17)*КИЛОМЕТР+(M17+O17+Q17+S17)*НАСОС+(N17+P17+R17+T17)*БЕЗ_НАСОСА -> 0 | X17: =IF(W17=0,"",X16-W17+U17) -> 
V18: =W18 -> 0 | W18: 0
V19: 0 | W19: 0
V20: 0 | W20: 0
V21: 0 | W21: 0
V22: 0 | W22: 0
V23: 0 | W23: 0
V24: 0 | W24: 0
V25: 0 | W25: 0
V26: 0 | W26: 0
V27: 0 | W27: 0
V28: 0 | W28: 0
V29: 0 | W29: 0
V30: 0 | W30: 0
V31: 0 | W31: 0
V32: 0 | W32: 0
V33: 0 | W33: 0
V34: 0 | W34: 0
V35: 0 | W35: 0
V36: 0 | W36: 0
V37: 0 | W37: 0
V38: 0 | W38: 0
V39: 0 | W39: 0
V40: 0 | W40: 0
V41: 0 | W41: 0
V42: 0 | W42: 0
V43: 0 | W43: 0
V44: 0 | W44: 0
V45: 0 | W45: 0
V46: 0 | W46: 0
V47: 0 | W47: 0
V48: 0 | W48: =IF(L48="",0,L48)*КИЛОМЕТР+(M48+O48+Q48+S48)*НАСОС+(N48+P48+R48+T48)*БЕЗ_НАСОСА -> 0
V49: 0 | W49: 0
V50: 0 | W50: 0
V51: 0 | W51: 0
V52: 0 | W52: 0
V53: 0 | W53: 0
V54: 0 | W54: 0
V55: 0 | W55: 0
V56: 0 | W56: 0
V57: 0 | W57: 0
V58: 0 | W58: 0
V59: 0 | W59: 0
V60: 0 | W60: 0
V61: 0 | W61: 0
V62: 0 | W62: 0
V63: 0 | W63: 0
V64: 0 | W64: 0
V65: 0 | W65: 0
V66: 0 | W66: 0
V67: 0 | W67: 0
V68: 0 | W68: 0
V69: 0 | W69: 0
V70: 0 | W70: 0
V71: 0 | W71: 0
V72: 0 | W72: 0
V73: 0 | W73: 0
V74: 0 | W74: 0
V75: 0 | W75: 0
V76: 0 | W76: 0
V77: 0 | W77: 0
V78: 0 | W78: 0
V79: 0 | W79: 0
L80: =IF(K81="","",K81-K80) ->  | V80: 0 | W80: =IF(L80="",0,L80)*КИЛОМЕТР+(M80+O80+Q80+S80)*НАСОС+(N80+P80+R80+T80)*БЕЗ_НАСОСА -> 0
V81: =W81 -> 0 | W81: 0 | X81: =IF(W81=0,"",X80-W81+U81) -> 
V82: 0 | W82: 0
V83: 0 | W83: 0
V84: 0 | W84: 0
V85: 0 | W85: 0
V86: 0 | W86: 0
V87: 0 | W87: 0
V88: 0 | W88: 0
V89: 0 | W89: 0 | X89: =IF(W89=0,"",X88-W89+U89) -> 
V90: 0 | W90: 0
A91: ИТОГО за месяц | L91: =SUM(L16:L90) -> 0 | M91: 0 | N91: 0 | O91: 0 | P91: 0 | Q91: 0 | R91: 5 | S91: 0 | T91: 0 | U91: 0 | V91: 0.825 | W91: 0.825 | X91: =Остаток_на_начало_месяца+Заправлено-W91 -> 127.175
A92: Израсходовано топлива по элементам работы(в литрах) | L92: =L91*КИЛОМЕТР -> 0 | M92: =M91*НАСОС -> 0 | N92: =N91*БЕЗ_НАСОСА -> 0 | O92: =O91*НАСОС -> 0 | P92: =P91*БЕЗ_НАСОСА -> 0 | Q92: =Q91*НАСОС -> 0 | R92: =R91*БЕЗ_НАСОСА -> 0.825 | S92: =S91*НАСОС -> 0 | T92: =T91*БЕЗ_НАСОСА -> 0
A93: Наработка а/м за отчетный месяц в км.(с учетом приведенного) | J93: =(M91+O91+Q91+S91)/60*50+L91 -> 0 | L93: км.
Q94: Текущая норма | V94: Пробег по спидометру, км | Y94: =L91 -> 0
C95: Руководитель подразделения | L95: Старший водитель | Q95: 1 км | T95: 0.51 | V95: Наработка с насосом м.ч. | Y95: =(M91+O91+Q91+S91)/60 -> 0
C96: <_____>______________________2015г. | L96: <_____>______________________ | P96: 2015г. | Q96: 1 мин с насосом | V96: Наработка без насоса | Y96: =N91+P91+R91+T91 -> 5
Q97: 1 мин без насоса | T97: 0.165 | V97: Приведенный пробег | Y97: =Y95*50 -> 0
V98: Общий пробег | Y98: =Y94+Y97 -> 0

Sheet АГДЗС
A1: Эксплуатационная карта
D2: Работы пожарного автомобиля за | G2: =Нормы!G3 -> Март 2015 г | L2: Наименование и № подразделения КГ | P2: К Г К У 9 - О П С | S2: 37 - П Ч
A3: Тип,марка,модель Автомобиль газодымозащитной службы АГДЗС (43502) Государственный регистрационный знак | X3: О 991 АХ
A4: Пробег а/м на 1-е число отчетного месяца от начала эксплуатаций: шасси | L4: =Нормы!B106 -> 2130 | N4: км.двигатель | S4: км.(приведенный)
A5: Остаток топлива в автомобиле на 1-е число отчетного месяца | L5: ='отчёт '!F24 -> 118 | X5: литр.
A6: Заправлено топлива в автомобиль за отчетный месяц | I6: =U91 -> 0 | X6: литр.
A7: Остаток топлива в автомобиле на 1-е число следующего за отчетным месяцем | M7: =X91 -> 117.175 | X7: литр.
A8: Результат расхода топлива за отчетный месяц
E9: фактически | G9: =V91 -> 0.825 | J9: литр. | L9: Экономия _________________литр.
E10: по нормам | G10: =W91 -> 0.825 | J10: литр. | L10: Перерасход _________________литр.
A12: дата | B12: Наименование и место работы автомобиля(То,работа на пожаре,учениях и др) | G12: работа пожарного автомобиля | V12: расход топлива в литрах | X12: Остаток топлива | Y12: подписи
G13: время выезда | I13: время возвращения | K13: показания спидометра перед выездом | L13: пройдено км к месту работы и обратно | M13: на пожарах (в мин) | O13: на учениях (в мин) | Q13: при смене караула (в мин) | S13: на прочих работах | U13: заправлено топлива в автомобиль
G14: часы | H14: минуты | I14: часы | J14: минуты | M14: с насосом | N14: без насоса | O14: с насосом | P14: без насоса | Q14: с насосом | R14: без насоса | S14: с насосом | T14: без насоса | V14: фактически | W14: по нормам | Y14: водителя | Z14: начальника караула
A15: 1 | B15: 2 | G15: 3 | H15: 4 | I15: 5 | J15: 6 | K15: 7 | L15: 8 | M15: 9 | N15: 10 | O15: 11 | P15: 12 | Q15: 13 | R15: 14 | S15: 15 | T15: 16 | U15: 17 | V15: 18 | W15: 19 | X15: 20 | Y15: 21 | Z15: 22
A16: 1,03 | B16: Смена караула | K16: =L4 -> 2130 | L16: =IF(K17="","",K17-K16) ->  | R16: 5 | V16: =W16 -> 0.825 | W16: =IF(L16="",0,L16)*КИЛОМЕТР+(M16+O16+Q16+S16)*НАСОС+(N16+P16+R16+T16)*БЕЗ_НАСОСА -> 0.825 | X16: =Остаток_на_начало_месяца-W16+U16 -> 117.175
V17: =W17 -> 0 | W17: =IF(L17="",0,L17)*КИЛОМЕТР+(M17+O17+Q17+S17)*НАСОС+(N17+P17+R17+T17)*БЕЗ_НАСОСА -> 0 | X17: =IF(W17=0,"",X16-W17+U17) -> 
V18: =W18 -> 0 | W18: 0
V19: 0 | W19: 0
V20: 0 | W20: 0
V21: 0 | W21: 0
V22: 0 | W22: 0
V23: 0 | W23: 0
V24: 0 | W24: 0
V25: 0 | W25: 0
V26: 0 | W26: 0
V27: 0 | W27: 0
V28: 0 | W28: 0
V29: 0 | W29: 0
V30: 0 | W30: 0
V31: 0 | W31: 0
V32: 0 | W32: 0
V33: 0 | W33: 0
V34: 0 | W34: 0
V35: 0 | W35: 0
V36: 0 | W36: 0
V37: 0 | W37: 0
V38: 0 | W38: 0
V39: 0 | W39: 0
V40: 0 | W40: 0
V41: 0 | W41: 0
V42: 0 | W42: 0
V43: 0 | W43: 0
V44: 0 | W44: 0
V45: 0 | W45: 0
V46: 0 | W46: 0
V47: 0 | W47: 0
V48: 0 | W48: =IF(L48="",0,L48)*КИЛОМЕТР+(M48+O48+Q48+S48)*НАСОС+(N48+P48+R48+T48)*БЕЗ_НАСОСА -> 0
V49: 0 | W49: 0
V50: 0 | W50: 0
V51: 0 | W51: 0
V52: 0 | W52: 0
V53: 0 | W53: 0
V54: 0 | W54: 0
V55: 0 | W55: 0
V56: 0 | W56: 0
V57: 0 | W57: 0
V58: 0 | W58: 0
V59: 0 | W59: 0
V60: 0 | W60: 0
V61: 0 | W61: 0
V62: 0 | W62: 0
V63: 0 | W63: 0
V64: 0 | W64: 0
V65: 0 | W65: 0
V66: 0 | W66: 0
V67: 0 | W67: 0
V68: 0 | W68: 0
V69: 0 | W69: 0
V70: 0 | W70: 0
V71: 0 | W71: 0
V72: 0 | W72: 0
V73: 0 | W73: 0
V74: 0 | W74: 0
V75: 0 | W75: 0
V76: 0 | W76: 0
V77: 0 | W77: 0
V78: 0 | W78: 0
V79: 0 | W79: 0
L80: =IF(K81="","",K81-K80) ->  | V80: 0 | W80: =IF(L80="",0,L80)*КИЛОМЕТР+(M80+O80+Q80+S80)*НАСОС+(N80+P80+R80+T80)*БЕЗ_НАСОСА -> 0
V81: =W81 -> 0 | W81: 0 | X81: =IF(W81=0,"",X80-W81+U81) -> 
V82: 0 | W82: 0
V83: 0 | W83: 0
V84: 0 | W84: 0
V85: 0 | W85: 0
V86: 0 | W86: 0
V87: 0 | W87: 0
V88: 0 | W88: 0 | X88: =IF(W88=0,"",X87-W88+U88) -> 
V89: 0 | W89: 0
V90: 0 | W90: 0
A91: ИТОГО за месяц | L91: =SUM(L16:L90) -> 0 | M91: 0 | N91: 0 | O91: 0 | P91: 0 | Q91: 0 | R91: 5 | S91: 0 | T91: 0 | U91: 0 | V91: 0.825 | W91: 0.825 | X91: =Остаток_на_начало_месяца+Заправлено-W91 -> 117.175
A92: Израсходовано топлива по элементам работы(в литрах) | L92: =L91*КИЛОМЕТР -> 0 | M92: =M91*НАСОС -> 0 | N92: =N91*БЕЗ_НАСОСА -> 0 | O92: =O91*НАСОС -> 0 | P92: =P91*БЕЗ_НАСОСА -> 0 | Q92: =Q91*НАСОС -> 0 | R92: =R91*БЕЗ_НАСОСА -> 0.825 | S92: =S91*НАСОС -> 0 | T92: =T91*БЕЗ_НАСОСА -> 0
A93: Наработка а/м за отчетный месяц в км.(с учетом приведенного) | J93: =(M91+O91+Q91+S91)/60*50+L91 -> 0 | L93: км.
Q94: Текущая норма | V94: Пробег по спидометру, км | Y94: =L91 -> 0
C95: Руководитель подразделения | L95: Старший водитель | Q95: 1 км | T95: 0.532 | V95: Наработка с насосом м.ч. | Y95: =(M91+O91+Q91+S91)/60 -> 0
C96: <_____>______________________2015г. | L96: <_____>______________________ | P96: 2015г. | Q96: 1 мин с насосом | V96: Наработка без насоса | Y96: =N91+P91+R91+T91 -> 5
Q97: 1 мин без насоса | T97: 0.165 | V97: Приведенный пробег | Y97: =Y95*50 -> 0
V98: Общий пробег | Y98: =Y94+Y97 -> 0

Sheet отчёт
A1: УТВЕРЖДАЮ
A2: Директор КГКУ 9- ОПС
A3: _____________________
A4: "_____"_______________2015г.
A6: Отчёт о работе автотехники и раходе ГСМ по 37 ПЧ 9-ОПС за | O6: =Нормы!G3 -> Март 2015 г
A7: № П/П | B7: Марка автомобиля | D7: Гос. Номер | F7: Остаток на начало месяца | G7: Заправлено за месяц л | H7: Расход | J7: Остаток на конец месяца | K7: пробег км | M7: расход масла Л | O7: Работа техники минут
H10: по норме | I10: фактически | K10: Общий | L10: по спидометру | M10: моторного | N10: трансмиссионного | O10: на пожаре | Q10: на учениях | S10: смена караула | U10: прочие
O12: с агрег | P12: без агрег | Q12: с агрег | R12: без агрег | S12: с агрег | T12: без агрег | U12: с агрег | V12: без агрег
A14: 1 | B14: Ац – 40 (130) | D14: Х 088 ОМ | E14: 80 | F14: 36 | G14: ='088'!Заправлено -> 0 | H14: ='088'!W91 -> 0.495 | I14: =H14 -> 0.495 | J14: =ROUND(F14+G14-I14,0) -> 36 | K14: =ROUND(((O14+Q14+S14+U14)/60*50)+L14,0) -> 0 | L14: ='088'!L91 -> 0 | M14: =I14/100*2.2 -> 0.01089 | O14: ='088'!M91 -> 0 | P14: ='088'!N91 -> 0 | Q14: ='088'!O91 -> 0 | R14: ='088'!P91 -> 0 | S14: ='088'!Q91 -> 0 | T14: ='088'!R91 -> 3 | U14: ='088'!S91 -> 0 | V14: ='088'!T91 -> 0
A15: 2 | B15: Ац – 40 (130) | D15: Х 090 ОМ | E15: 80 | F15: 47 | G15: =' 090 '!Заправлено -> 0 | H15: =' 090 '!W88 -> 0.495 | I15: =H15 -> 0.495 | J15: =ROUND(F15+G15-I15,0) -> 47 | K15: =ROUND(((O15+Q15+S15+U15)/60*50)+L15,0) -> 0 | L15: =' 090 '!L88 -> 0 | M15: =I15/100*2.2 -> 0.01089 | O15: =' 090 '!M88 -> 0 | P15: =' 090 '!N88 -> 0 | Q15: =' 090 '!O88 -> 0 | R15: =' 090 '!P88 -> 0 | S15: =' 090 '!Q88 -> 0 | T15: =' 090 '!R88 -> 3 | U15: =' 090 '!S88 -> 0 | V15: =' 090 '!T88 -> 0
A16: 3 | B16: Ац – 40 (130) | D16: Х 093 ОМ | E16: 80 | F16: 51 | G16: =' 093 '!Заправлено -> 0 | H16: =' 093 '!W91 -> 0.495 | I16: =H16 -> 0.495 | J16: 51 | K16: =ROUND(((O16+Q16+S16+U16)/60*50)+L16,0) -> 0 | L16: =' 093 '!L91 -> 0 | M16: =I16/100*2.2 -> 0.01089 | O16: =' 093 '!M91 -> 0 | P16: =' 093 '!N91 -> 0 | Q16: =' 093 '!O91 -> 0 | R16: =' 093 '!P91 -> 0 | S16: =' 093 '!Q91 -> 0 | T16: =' 093 '!R91 -> 3 | U16: =' 093 '!S91 -> 0 | V16: =' 093 '!T91 -> 0
A17: 4 | B17: АЛГ -30 (131) | D17: Х 097 ОМ | E17: 80 | F17: 0 | G17: =[0]!Заправлено ->  | H17: =#REF! ->  | K17: =ROUND(((O17+Q17+S17+U17)/60*50)+L17,0) ->  | L17: =#REF! ->  | M17: =I17/100*2.2 ->  | O17: =#REF! ->  | P17: =#REF! ->  | Q17: =#REF! ->  | R17: =#REF! ->  | S17: =#REF! ->  | T17: =#REF! ->  | U17: =#REF! ->  | V17: =#REF! -> 
A18: 5 | B18: АЛ 30( 4326) | D18: Х 351 АР | E18: дт | F18: 94 | G18: ='351'!Заправлено -> 0 | H18: ='351'!W91 -> 2.035 | I18: 2.035 | J18: 92 | K18: =ROUND(((O18+Q18+S18+U18)/60*50)+L18,0) -> 6 | L18: ='351'!L91 -> 0 | M18: =I18/100*2.8 -> 0.05698 | O18: ='351'!M91 -> 0 | P18: ='351'!N91 -> 0 | Q18: ='351'!O91 -> 0 | R18: ='351'!P91 -> 0 | S18: ='351'!Q91 -> 7 | T18: ='351'!R91 -> 3 | U18: ='351'!S91 -> 0 | V18: ='351'!T91 -> 0
A19: 6 | B19: ПНС-110 (131) | D19: Х 096 ОМ | E19: 80 | G19: =[0]!Заправлено ->  | H19: =#REF! ->  | K19: =L19 ->  | L19: =#REF! ->  | M19: =I19/100*2.2 ->  | P19: =#REF! ->  | R19: =#REF! ->  | T19: =#REF! ->  | V19: =#REF! -> 
E20: дт | G20: =[0]!Заправлено ->  | H20: =#REF! ->  | K20: ---- | L20: ---- | O20: =#REF! ->  | P20: =#REF! ->  | Q20: =#REF! ->  | R20: =#REF! ->  | S20: =#REF! ->  | T20: =#REF! ->  | U20: =#REF! ->  | V20: =#REF! -> 
A21: 7 | B21: АР-2 (131) | D21: Х 089 ОМ | E21: 80 | G21: =[0]!Заправлено ->  | H21: =#REF! ->  | I21: =H21 ->  | K21: =ROUND(((O21+Q21+S21+U21)/60*50)+L21,0) ->  | L21: =#REF! ->  | M21: =I21/100*2.2 ->  | O21: =#REF! ->  | P21: =#REF! ->  | Q21: =#REF! ->  | R21: =#REF! ->  | S21: =#REF! ->  | T21: =#REF! ->  | U21: =#REF! ->  | V21: =#REF! -> 
A22: 8 | B22: АЦ-9-40 (43118) | D22: Х 883ОМ | E22: дт | F22: 424 | G22: =' 883 '!Заправлено -> 0 | H22: =' 883 '!W85 -> 0.825 | I22: 0.825 | J22: 423 | K22: =ROUND(((O22+Q22+S22+U22)/60*50)+L22,0) -> 0 | L22: =' 883 '!L85 -> 0 | M22: =I22/100*2.8 -> 0.0231 | O22: =' 883 '!M85 -> 0 | P22: =' 883 '!N85 -> 0 | Q22: =' 883 '!O85 -> 0 | R22: =' 883 '!P85 -> 0 | S22: =' 883 '!Q85 -> 0 | T22: =' 883 '!R85 -> 5 | U22: =' 883 '!S85 -> 0 | V22: =' 883 '!T85 -> 0
A23: 10 | B23: АЦ 7,5-40 (43118) | D23: У 007АХ | E23: дт | F23: 158 | G23: ='007'!Заправлено -> 0 | H23: ='007'!W95 -> 0.825 | I23: =H23 -> 0.825 | J23: 157 | K23: =ROUND(((O23+Q23+S23+U23)/60*50)+L23,0) -> 0 | L23: ='007'!L95 -> 0 | M23: =I23/100*2.8 -> 0.0231 | O23: ='007'!M95 -> 0 | P23: ='007'!N95 -> 0 | Q23: ='007'!O95 -> 0 | R23: ='007'!P95 -> 0 | S23: ='007'!Q95 -> 0 | T23: ='007'!R95 -> 5 | U23: ='007'!S95 -> 0 | V23: ='007'!T95 -> 0
A24: 11 | B24: АГДЗС | D24: О 991 АХ | E24: дт | F24: 118 | G24: =АГДЗС!Заправлено -> 0 | H24: =АГДЗС!W91 -> 0.825 | I24: =H24 -> 0.825 | J24: 117 | K24: 0 | L24: =АГДЗС!L91 -> 0 | M24: 0.0231 | O24: =АГДЗС!M91 -> 0 | P24: =АГДЗС!N91 -> 0 | Q24: =АГДЗС!O91 -> 0 | R24: =АГДЗС!P91 -> 0 | S24: =АГДЗС!Q91 -> 0 | T24: =АГДЗС!R91 -> 5 | U24: =АГДЗС!S91 -> 0 | V24: =АГДЗС!T91 -> 0
A25: 12 | B25: ПНС-100 (5350) | D25: О 992 АХ | E25: дт | F25: 156 | G25: ='ПНС -100'!Заправлено -> 0 | H25: ='ПНС -100'!W91 -> 0.825 | I25: 0.825 | J25: 155 | K25: 0 | L25: ='ПНС -100'!L91 -> 0 | M25: 0.0231 | O25: ='ПНС -100'!M91 -> 0 | P25: ='ПНС -100'!N91 -> 0 | Q25: ='ПНС -100'!O91 -> 0 | R25: ='ПНС -100'!P91 -> 0 | S25: ='ПНС -100'!Q91 -> 0 | T25: ='ПНС -100'!R91 -> 5 | U25: ='ПНС -100'!S91 -> 0 | V25: ='ПНС -100'!T91 -> 0
A26: 13 | D26: ЯМЗ 238 Д | E26: дт | F26: 146 | G26: ='ПНС-100 дизель'!Заправлено -> 0 | H26: ='ПНС-100 дизель'!W91 -> 1.65 | I26: 1.65 | J26: 144 | K26: ---- | L26: ---- | M26: 0.0462 | O26: ='ПНС-100 дизель'!M91 -> 0 | P26: ='ПНС-100 дизель'!N91 -> 0 | Q26: ='ПНС-100 дизель'!O91 -> 0 | R26: ='ПНС-100 дизель'!P91 -> 0 | S26: ='ПНС-100 дизель'!Q91 -> 0 | T26: ='ПНС-100 дизель'!R91 -> 10 | U26: ='ПНС-100 дизель'!S91 -> 0 | V26: ='ПНС-100 дизель'!T91 -> 0
A27: 14 | B27: АР-2 (5350) | D27: Н 077 КР | E27: дт | F27: 128 | G27: ='АР-2(5350)'!Заправлено -> 0 | H27: ='АР-2(5350)'!W91 -> 0.825 | I27: 0.825 | J27: 127 | K27: 0 | L27: ='АР-2(5350)'!L91 -> 0 | M27: 0.0231 | O27: ='АР-2(5350)'!M91 -> 0 | P27: ='АР-2(5350)'!N91 -> 0 | Q27: ='АР-2(5350)'!O91 -> 0 | R27: ='АР-2(5350)'!P91 -> 0 | S27: ='АР-2(5350)'!Q91 -> 0 | T27: ='АР-2(5350)'!R91 -> 5 | U27: ='АР-2(5350)'!S91 -> 0 | V27: ='АР-2(5350)'!T91 -> 0
A28: 15 | B28: Зил - 131 | D28: Х 098 ОМ | E28: 80 | F28: 33 | I28: 0 | J28: 33 | M28: =I28/100*2.2 -> 0
A29: 16 | B29: Тойота Спринтер | D29: Х 009 ОМ | E29: 92 | F29: 9 | I29: 0 | J29: 9
A30: № П/П | B30: Марка автомобиля | D30: Гос. Номер | F30: Остаток на начало месяца | G30: Заправлено за месяц л | H30: Расход | J30: Остаток на конец месяца | K30: пробег км | M30: расход масла Л | O30: Работа техники минут
H33: по норме | I33: фактически | K33: Общий | L33: по спидометру | M33: моторного | N33: трансмиссионного | O33: на пожаре | Q33: на учениях | S33: смена караула | U33: прочие
O35: с агрег | P35: без агрег | Q35: с агрег | R35: без агрег | S35: с агрег | T35: без агрег | U35: с агрег | V35: без агрег
A37: 17 | B37: Бензопила «Хускварна» 240 | E37: 92 | F37: 0.17 | G37: ='пила 240'!Заправлено -> 0 | H37: ='пила 240'!W71 -> 0 | I37: 0 | J37: =ROUND(F37+G37-I37,2) -> 0.17 | O37: ='пила 240'!M71 -> 0 | P37: ='пила 240'!N71 -> 0 | Q37: ='пила 240'!O71 -> 0 | R37: ='пила 240'!P71 -> 0 | S37: ='пила 240'!Q71 -> 0 | T37: ='пила 240'!R71 -> 0 | U37: ='пила 240'!S71 -> 0 | V37: ='пила 240'!T71 -> 0
A38: 18 | B38: Бензорез «Хускварна» К760 | E38: 92 | F38: 0.61 | G38: ='Бензорез К 760'!Заправлено -> 0 | H38: ='Бензорез К 760'!W71 -> 0 | I38: 0 | J38: 0.61 | O38: ='Бензорез К 760'!M71 -> 0 | P38: ='Бензорез К 760'!N71 -> 0 | Q38: ='Бензорез К 760'!O71 -> 0 | R38: ='Бензорез К 760'!P71 -> 0 | S38: ='Бензорез К 760'!Q71 -> 0 | T38: ='Бензорез К 760'!R71 -> 0 | U38: ='Бензорез К 760'!S71 -> 0 | V38: ='Бензорез К 760'!T71 -> 0
A39: 19 | B39: Воздуходув «Хускварна» 356 ВТ | E39: 92 | F39: 1.37 | I39: 0 | J39: 1.37
A40: 20 | B40: АСИ»Спрут» СИ64 | E40: 92 | F40: 0.11 | G40: ='"Спрут"'!Заправлено -> 0 | H40: ='"Спрут"'!W71 -> 0 | I40: 0 | J40: 0.11 | O40: ='"Спрут"'!M71 -> 0 | P40: ='"Спрут"'!N71 -> 0 | Q40: ='"Спрут"'!O71 -> 0 | R40: ='"Спрут"'!P71 -> 0 | S40: ='"Спрут"'!Q71 -> 0 | T40: ='"Спрут"'!R71 -> 0 | U40: ='"Спрут"'!S71 -> 0 | V40: ='"Спрут"'!T71 -> 0
A41: 21 | B41: АОУ ELG (T7) 600/400S 2.7 | E41: 92 | F41: 2.38 | G41: ='Столб '!Заправлено -> 0 | H41: ='Столб '!W71 -> 0 | I41: 0 | J41: 2.38 | O41: ='Столб '!M71 -> 0 | P41: ='Столб '!N71 -> 0 | Q41: ='Столб '!O71 -> 0 | R41: ='Столб '!P71 -> 0 | S41: ='Столб '!Q71 -> 0 | T41: ='Столб '!R71 -> 0 | U41: ='Столб '!S71 -> 0 | V41: ='Столб '!T71 -> 0
A42: 22 | B42: Дымосос «Буран» ДПМ-20 | E42: 92 | F42: 2.76 | G42: =Дымосос!Заправлено -> 0 | H42: =Дымосос!W71 -> 0 | I42: 0 | J42: 2.76 | O42: =Дымосос!M71 -> 0 | P42: =Дымосос!N71 -> 0 | Q42: =Дымосос!O71 -> 0 | R42: =Дымосос!P71 -> 0 | S42: =Дымосос!Q71 -> 0 | T42: =Дымосос!R71 -> 0 | U42: =Дымосос!S71 -> 0 | V42: =Дымосос!T71 -> 0
A43: 23 | B43: Моновентилятор ВРМ-160 | E43: 92 | F43: 0.44 | G43: =' ВРМ-160'!Заправлено -> 0 | H43: =' ВРМ-160'!W71 -> 0 | I43: 0 | J43: 0.44 | O43: =' ВРМ-160'!M71 -> 0 | P43: =' ВРМ-160'!N71 -> 0 | Q43: =' ВРМ-160'!O71 -> 0 | R43: =' ВРМ-160'!P71 -> 0 | S43: =' ВРМ-160'!Q71 -> 0 | T43: =' ВРМ-160'!R71 -> 0 | U43: =' ВРМ-160'!S71 -> 0 | V43: =' ВРМ-160'!T71 -> 0
A44: 24 | B44: Генератор «Вепрь» АПБ 6-230 ВХ | E44: 92 | F44: 3.56 | G44: ='Вепрь АПВ-6'!Заправлено -> 0 | H44: ='Вепрь АПВ-6'!W71 -> 0 | I44: 0 | J44: 3.56 | O44: ='Вепрь АПВ-6'!M71 -> 0 | P44: ='Вепрь АПВ-6'!N71 -> 0 | Q44: ='Вепрь АПВ-6'!O71 -> 0 | R44: ='Вепрь АПВ-6'!P71 -> 0 | S44: ='Вепрь АПВ-6'!Q71 -> 0 | T44: ='Вепрь АПВ-6'!R71 -> 0 | U44: ='Вепрь АПВ-6'!S71 -> 0 | V44: ='Вепрь АПВ-6'!T71 -> 0
A45: 25 | B45: Генератор SH-6000 | E45: 92 | F45: 4.03 | G45: ='SH-6000'!Заправлено -> 0 | H45: ='SH-6000'!W71 -> 0 | I45: 0 | J45: 4.03 | O45: ='SH-6000'!M71 -> 0 | P45: ='SH-6000'!N71 -> 0 | Q45: ='SH-6000'!O71 -> 0 | R45: ='SH-6000'!P71 -> 0 | S45: ='SH-6000'!Q71 -> 0 | T45: ='SH-6000'!R71 -> 0 | U45: ='SH-6000'!S71 -> 0 | V45: ='SH-6000'!T71 -> 0
A46: 26 | B46: Генератор SH-6500 | E46: 92 | F46: 4.78 | G46: =' SH-6500'!Заправлено -> 0 | H46: =' SH-6500'!W71 -> 0 | I46: 0 | J46: 4.78 | O46: =' SH-6500'!M71 -> 0 | P46: =' SH-6500'!N71 -> 0 | Q46: =' SH-6500'!O71 -> 0 | R46: =' SH-6500'!P71 -> 0 | S46: =' SH-6500'!Q71 -> 0 | T46: =' SH-6500'!R71 -> 0 | U46: =' SH-6500'!S71 -> 0 | V46: =' SH-6500'!T71 -> 0
A47: 27 | B47: Генератор АДП 16-Т400 ВЛ | E47: дт | F47: 16.52 | G47: ='АДП-16'!Заправлено -> 0 | H47: ='АДП-16'!W71 -> 0 | I47: 0 | J47: 16.52 | O47: ='АДП-16'!M71 -> 0 | P47: ='АДП-16'!N71 -> 0 | Q47: ='АДП-16'!O71 -> 0 | R47: ='АДП-16'!P71 -> 0 | S47: ='АДП-16'!Q71 -> 0 | T47: ='АДП-16'!R71 -> 0 | U47: ='АДП-16'!S71 -> 0 | V47: ='АДП-16'!T71 -> 0
A48: 28 | B48: Бензокосилка SPARTA | E48: 92 | F48: 0.08 | G48: =Бензокоса!Заправлено -> 0 | H48: =Бензокоса!W39 -> 0 | I48: 0 | J48: 0.08 | T48: =Бензокоса!R39 -> 0
A49: 29 | B49: Бойлер KITURAMI-200R | E49: дт | F49: 12 | I49: 0 | J49: =F49+G49-I49 -> 12
A50: ИТОГО | C50: АИ-80 | F50: =SUM(F14:F16,F28) -> 167 | G50: =SUM(G14:G16,G28) -> 0 | H50: =SUM(H14:H16,H28) -> 1.485 | I50: =H50 -> 1.485 | J50: =SUM(J14:J16,J28) -> 167 | K50: =SUM(K14:K16,K28) -> 0 | L50: 0 | M50: 0.03267 | N50: 0 | O50: 0 | P50: 0 | Q50: 0 | R50: 0 | S50: 0 | T50: 9 | U50: 0 | V50: 0
C51: АИ-92 | F51: =SUM(F37:F46)+F48+F29 -> 29.29 | G51: =SUM(G37:G46)+G48+G29 -> 0 | H51: 0 | I51: =H51 -> 0 | J51: =SUM(J37:J46)+J48+J29 -> 29.29 | K51: =K29 -> 0 | L51: =L29 -> 0 | O51: =SUM(O37:O46)+O48 -> 0 | P51: =SUM(P37:P46)+P48 -> 0 | Q51: 0 | R51: 0 | S51: 0 | T51: 0 | U51: 0 | V51: 0
C52: Д\Т | F52: =SUM(F18,F22:F27,F47,F49) -> 1252.52 | G52: =SUM(G18,G22:G27,G47,G49) -> 0 | H52: =SUM(H18,H22:H27,H47,H49) -> 7.81 | I52: =H52 -> 7.81 | J52: =SUM(J18,J22:J27,J47,J49) -> 1243.52 | K52: =SUM(K18,K22:K27,K47,K49) -> 6 | L52: =SUM(L18,L20,L22:L27) -> 0 | O52: =SUM(O18,O22:O27,O47,O49) -> 0 | P52: 0 | Q52: 0 | R52: 0 | S52: 7 | T52: 38 | U52: 0 | V52: 0
C53: Масло 2-х тактное | M53: =SUM(H37:H43,H48)/25 -> 0
C54: М8В
C55: М10 Г2К | M55: =SUM(M14:M16,M18,M22:M28) -> 0.25135
C56: Трансмиссионное | M56: =(I50/100*0.3)+((I22+I18+I23)/100*0.4) -> 0.019195
C57: Смазка консистентная | M57: =(I50/100*0.2)+((I22+I18+I23)/100*0.35) -> 0.0158675
A59: РЕЗЕРВ на конец месяца | C59: А-80 | H59: 0 (остаток) + 100 (взято с АЗС) - 100 (заправлено в баки) = 0
C60: Д/Т | H60: 0 (остаток) + 500 (взято с АЗС) - 500 (заправлено в баки) = 0
C61: Аи-92 | F61: 5.2 | H61: 4,5 (остаток) + 340 (взято с АЗС) - 343,5 (заправлено в баки) = 1
B65: Старший водитель | E65: ____________________ | L65: Начальник 37-ПЧ | P65: _________________

Sheet Нормы
A1: ЛЕТНИЕ НОРМЫ
A2: ТИП. МАРКА АВТОМОБИЛЯ | B2: РАСХОД НА 1 КМ | C2: РАСХОД С АГРЕГАТОМ | D2: РАСХОД БЕЗ АГРЕГАТА
A3: АЦ 40(130) | B3: 0.456 | C3: 0.33 | D3: 0.15 | F3: ДАТА -- | G3: Март 2015 г
A4: АЦ 9-40 КАМАЗ | B4: 0.506 | C4: 0.25 | D4: 0.15
A5: АЦ 7,5-40 КАМАЗ (Е-4) | B5: 0.509 | C5: 0.25 | D5: 0.15
A6: АЛГ 30 (131) | B6: 0.564 | C6: 0.25 | D6: 0.15
A7: АЛ 30 КАМАЗ | B7: 0.44 | C7: 0.2 | D7: 0.15
A8: ПНС 110 (131) | B8: 0.581 | C8: - | D8: 0.15
A9: ПНС ДИЗЕЛЬ | B9: - | C9: 1.1 | D9: 0.35
A10: АР-2(131) | B10: 0.575 | D10: 0.15
A11: ПНС 100 (5350) | B11: 0.483 | C11: - | D11: 0.15
A12: ПНС (Дизель) | B12: - | C12: 0.664 | D12: 0.15
A13: АР-2 (5350) | B13: 0.467 | C13: - | D13: 0.15
A14: АГДЗС (43502) | B14: 0.487 | C14: - | D14: 0.15
A15: БЕНЗОПИЛА 240 | C15: 0.01
A16: БЕНЗОРЕЗ К 760 | C16: 0.042
A17: РАНЦЕВАЯ ДУЙКА 356 ВТ | C17: 0.02
A18: ГАСИ "СПРУТ" | C18: 0.0085
A19: ГЕНЕРАТОР 6000 | C19: 0.039
A20: ГЕНЕРАТОР 6500 | C20: 0.047
A21: БЕНЗОКОСА | C21: 0.01
A22: ВОЗДУХОДУВКА | C22: 0.01
A23: ДЫМОСОС "Буран" ДПМ 20 | C23: 0.07
A24: СВЕТОВОЙ СТОЛБ | C24: 0.02
A25: ГЕНЕРАТОР ВЕПРЬ АПВ 6-230 | C25: 0.04
A26: ГЕНЕРАТОР АДП 16-Т 400 | C26: 0.043
A28: ЗИМНИЕ НОРМЫ
A29: ТИП. МАРКА АВТОМОБИЛЯ | B29: РАСХОД НА 1 КМ | C29: РАСХОД С АГРЕГАТОМ | D29: РАСХОД БЕЗ АГРЕГАТА
A30: АЦ 40(130) | B30: 0.498 | C30: 0.363 | D30: 0.165
A31: АЦ 9-40 КАМАЗ | B31: 0.552 | C31: 0.275 | D31: 0.165
A32: АЦ 7,5-40 КАМАЗ (Е-4) | B32: 0.556 | C32: 0.275 | D32: 0.165
A33: АЛГ 30 (131) | B33: 0.613 | C33: 0.275 | D33: 0.165
A34: АЛ 30 КАМАЗ | B34: 0.48 | C34: 0.22 | D34: 0.165
A35: ПНС 110 (131) | B35: 0.631 | C35: - | D35: 0.165
A36: ПНС ДИЗЕЛЬ | B36: - | C36: 1.21 | D36: 0.385
A37: АР-2 (131) | B37: 0.625 | C37: - | D37: 0.165
A38: ПНС 100 (5350) | B38: 0.526 | C38: - | D38: 0.165
A39: ПНС (Дизель) | B39: - | C39: 0.73 | D39: 0.165
A40: АР-2 (5350) | B40: 0.51 | C40: - | D40: 0.165
A41: АГДЗС (43502) | B41: 0.532 | C41: - | D41: 0.165
A42: БЕНЗОПИЛА 240 | C42: 0.011
A43: БЕНЗОРЕЗ К 760 | C43: 0.0462
A44: РАНЦЕВАЯ ДУЙКА 356 ВТ | C44: 0.02
A45: ГАСИ "СПРУТ" | C45: 0.0093
A46: ГЕНЕРАТОР 6000 | C46: 0.039
A47: ГЕНЕРАТОР 6500 | C47: 0.047
A48: БЕНЗОКОСА | C48: 0.01
A49: ВОЗДУХОДУВКА | C49: 0.01
A50: ДЫМОСОС "Буран" ДПМ 20 | C50: 0.077
A51: СВЕТОВОЙ СТОЛБ | C51: 0.02
A52: ГЕНЕРАТОР ВЕПРЬ АПВ 6-230 | C52: 0.04
A53: ГЕНЕРАТОР АДП 16-Т 400 | C53: 0.043
C61: Факт | D61: Плюс/минус
A62: АР-2 (131) | B62: Х 089 ОМ
A63: Ац – 40 (130) | B63: Х 090 ОМ | C63: 71 | D63: =C63-'отчёт '!J15 -> 24
A64: Ац – 40 (130) | B64: Х 093 ОМ | C64: 95 | D64: =C64-'отчёт '!J16 -> 44
A65: АЛ 30( 4326) | B65: Х 351 АР | C65: 96 | D65: =C65-'отчёт '!J18 -> 4
A66: ПНС-110 (131) | B66: Х 096 ОМ
A67: ПНС дизель
A68: АЦ-9-40 КамАЗ 43118 | B68: Х 883ОМ | C68: 327 | D68: =C68-'отчёт '!J22 -> -96
A69: АЦ 7,5-40 КамАЗ 43118 | B69: У 007 АХ | C69: 160 | D69: =C69-'отчёт '!J23 -> 3
A70: Зил - 131 | B70: Х 098 ОМ | C70: 13 | D70: =C70-'отчёт '!J28 -> -20
A71: Ац – 40 (130) | B71: Х 088 ОМ | C71: 52 | D71: =C71-'отчёт '!J14 -> 16
A72: Агдзс | B72: О 991 АХ | C72: 132 | D72: =C72-'отчёт '!J24 -> 15
A73: ПНС | B73: О 992 АХ | C73: 155 | D73: =C73-'отчёт '!J25 -> 0
A74: ПНС (Дизель) | B74: ЯМЗ 238 Д | C74: 180 | D74: =C74-'отчёт '!J26 -> 36
A75: АР камаз | B75: Н 077 КР | C75: 140 | D75: =C75-'отчёт '!J27 -> 13
B77: Бензин | C77: =D63+D64+D70+D71 -> 64
B78: Д/Т | C78: =D65+D68+D69+D72+D73+D74+D75 -> -25
A84: номер | B84: пробег на след месяц | C84: общий на след месяц
A85: Х 088 ОМ | B85: ='088'!L4+'088'!Y94 -> 96021 | C85: ='088'!P4+'088'!Y98 -> 36707
A86: Х 090 ОМ | B86: =' 090 '!L4+' 090 '!Y91 -> 83913 | C86: =' 090 '!P4+' 090 '!Y95 -> 113928.1667
A87: Х 093 ОМ | B87: =' 093 '!L4+' 093 '!Y94 -> 48210 | C87: =' 093 '!P4+' 093 '!Y98 -> 100459.5
A88: Х 351 АР | B88: ='351'!L4+'351'!Y94 -> 4440 | C88: ='351'!P4+'351'!Y98 -> 11573.33333
A89: Х 883ОМ | B89: =' 883 '!L4+' 883 '!Y88 -> 48762 | C89: =' 883 '!P4+' 883 '!Y92 -> 61530.33333
A90: У 007 АХ | B90: ='007'!L4+'007'!Y98 -> 17953 | C90: ='007'!P4+'007'!Y102 -> 25733.83333
A91: АР-2 Н 077 КР | B91: ='АР-2(5350)'!L4+'АР-2(5350)'!Y94 -> 2360
A92: ПНС-100 О 992 АХ | B92: ='ПНС -100'!L4+'ПНС -100'!Y94 -> 2405
A93: АГДЗС О 991 АХ | B93: =АГДЗС!L4+АГДЗС!Y94 -> 2130
A96: Пробеги с предыдущего месяца
A97: номер | B97: спидометр | C97: общий
A98: Х 088 ОМ | B98: 96021 | C98: 36707
A99: Х 090 ОМ | B99: 83913 | C99: 113928.1667
A100: Х 093 ОМ | B100: 48210 | C100: 100459.5
A101: Х 351 АР | B101: 4440 | C101: 11567.5
A102: Х 883ОМ | B102: 48762 | C102: 61530.33333
A103: У 007 АХ | B103: 17953 | C103: 25733.83333
A104: АР-2 Н 077 КР | B104: 2360
A105: ПНС-100 О 992 АХ | B105: 2405
A106: АГДЗС О 991 АХ | B106: 2130

Sheet пила 240
A1: Эксплуатационная карта
A2: Работы механизма за | G2: =Нормы!G3 -> Март 2015 г | L2: Наименование и № подразделения | R2: КГКУ 9- ОПС | U2: 37- ПЧ
A3: Тип,марка,модель Бензопила "Хускварна" 240
A5: Остаток топлива на 1-е число отчетного месяца | K5: ='отчёт '!F37 -> 0.17 | X5: литр.
A6: Заправлено топлива за отчетный месяц | I6: =U71 -> 0 | X6: литр.
A7: Остаток топлива на 1-е число следующего за отчетным месяцем | M7: =X71 -> 0.17 | X7: литр.
A8: Результат расхода топлива за отчетный месяц
E9: фактически | G9: =V71 -> 0 | J9: литр. | L9: Экономия _________________литр.
E10: по нормам | G10: =W71 -> 0 | J10: литр. | L10: Перерасход _________________литр.
A12: дата | B12: Наименование и место работы автомобиля(То,работа на пожаре,учениях и др) | G12: работа механизма | V12: расход топлива в литрах | X12: Остаток топлива | Y12: подписи
G13: время выезда | I13: время возвращения | K13: показания спидометра перед выездом | L13: пройдено км к месту работы и обратно | M13: на пожарах(в мин) | O13: на учениях (в мин) | Q13: при смене караула (в мин) | S13: на прочих работах | U13: заправлено топлива
G14: часы | H14: минуты | I14: часы | J14: минуты | M14: с насосом | N14: без насоса | O14: с насосом | P14: без насоса | Q14: с насосом | R14: без насоса | S14: с насосом | T14: без насоса | V14: фактически | W14: по нормам | Y14: водителя | Z14: начальника караула
A15: 1 | B15: 2 | G15: 3 | H15: 4 | I15: 5 | J15: 6 | K15: 7 | L15: 8 | M15: 9 | N15: 10 | O15: 11 | P15: 12 | Q15: 13 | R15: 14 | S15: 15 | T15: 16 | U15: 17 | V15: 18 | W15: 19 | X15: 20 | Y15: 21 | Z15: 22
A16: 1,03 | B16: Смена караула | V16: =W16 -> 0 | W16: =IF(L16="",0,L16)*КИЛОМЕТР+(M16+O16+Q16+S16)*НАСОС+(N16+P16+R16+T16)*БЕЗ_НАСОСА -> 0 | X16: =Остаток_на_начало_месяца-W16+U16 -> 0.17
V17: =W17 -> 0 | W17: 0 | X17: =IF(W17=0,"",X16-W17+U17) -> 
V18: =W18 -> 0 | W18: 0
V19: 0 | W19: 0
V20: 0 | W20: 0
V21: 0 | W21: 0
V22: 0 | W22: 0
V23: 0 | W23: 0
V24: 0 | W24: 0
V25: 0 | W25: 0
V26: 0 | W26: 0
V27: 0 | W27: 0
V28: 0 | W28: =IF(L28="",0,L28)*КИЛОМЕТР+(M28+O28+Q28+S28)*НАСОС+(N28+P28+R28+T28)*БЕЗ_НАСОСА -> 0
V29: 0 | W29: =IF(L29="",0,L29)*КИЛОМЕТР+(M29+O29+Q29+S29)*НАСОС+(N29+P29+R29+T29)*БЕЗ_НАСОСА -> 0
V30: 0 | W30: 0
V31: 0 | W31: 0
V32: 0 | W32: =IF(L32="",0,L32)*КИЛОМЕТР+(M32+O32+Q32+S32)*НАСОС+(N32+P32+R32+T32)*БЕЗ_НАСОСА -> 0
V33: 0 | W33: 0
V34: 0 | W34: 0
V35: 0 | W35: =IF(L35="",0,L35)*КИЛОМЕТР+(M35+O35+Q35+S35)*НАСОС+(N35+P35+R35+T35)*БЕЗ_НАСОСА -> 0
V36: 0 | W36: 0
V37: 0 | W37: 0
V38: 0 | W38: 0
V39: 0 | W39: 0
V40: 0 | W40: 0
V41: 0 | W41: 0
V42: 0 | W42: 0
V43: 0 | W43: 0
V44: 0 | W44: 0
V45: 0 | W45: 0
V46: 0 | W46: 0
V47: 0 | W47: 0
V48: 0 | W48: =IF(L48="",0,L48)*КИЛОМЕТР+(M48+O48+Q48+S48)*НАСОС+(N48+P48+R48+T48)*БЕЗ_НАСОСА -> 0
V49: 0 | W49: 0
V50: 0 | W50: 0
V51: 0 | W51: 0
V52: 0 | W52: 0
V53: 0 | W53: 0
V54: 0 | W54: 0
V55: 0 | W55: 0
V56: 0 | W56: 0
V57: 0 | W57: 0
V58: 0 | W58: 0
V59: 0 | W59: 0
L60: =IF(K61="","",K61-K60) ->  | V60: 0 | W60: 0
V61: 0 | W61: 0
V62: 0 | W62: 0
V63: 0 | W63: 0
L64: =IF(K65="","",K65-K64) ->  | V64: 0 | W64: 0
V65: 0 | W65: 0
V66: 0 | W66: 0
V67: 0 | W67: 0
V68: 0 | W68: 0
V69: 0 | W69: 0 | X69: =IF(W69=0,"",X68-W69+U69) -> 
V70: 0 | W70: 0
A71: ИТОГО за месяц | L71: =SUM(L16:L70) -> 0 | M71: 0 | N71: 0 | O71: 0 | P71: 0 | Q71: 0 | R71: 0 | S71: 0 | T71: 0 | U71: 0 | V71: 0 | W71: 0 | X71: =Остаток_на_начало_месяца+Заправлено-W71 -> 0.17
A72: Израсходовано топлива по элементам работы(в литрах) | L72: =L71*КИЛОМЕТР -> 0 | M72: =M71*НАСОС -> 0 | N72: =N71*БЕЗ_НАСОСА -> 0 | O72: =O71*НАСОС -> 0 | P72: =P71*БЕЗ_НАСОСА -> 0 | Q72: =Q71*НАСОС -> 0 | R72: =R71*БЕЗ_НАСОСА -> 0 | S72: =S71*НАСОС -> 0 | T72: =T71*БЕЗ_НАСОСА -> 0
B73: Наработка за отчетный месяц в км.(с учетом приведенного) | J73: =(M71+O71+Q71+S71)/60*50+L71 -> 0 | L73: км.
Q74: Текущая норма | V74: Пробег по спидометру, км | Y74: =L71 -> 0
C75: Руководитель подразделения | L75: Старший водитель | Q75: 1 км | V75: Наработка с насосом м.ч. | Y75: =(M71+O71+Q71+S71)/60 -> 0
C76: <_____>______________________2015г. | L76: <_____>_____________2015г. | Q76: 1 мин с насосом | T76: 0.011 | V76: Наработка без насоса | Y76: =N71+P71+R71+T71 -> 0
F77: Коряков В.Н. | L77: Ломакин В.В. | Q77: 1 мин без насоса | T77: 0.011 | V77: Приведенный пробег | Y77: =Y75*50 -> 0
V78: Общий пробег | Y78: =Y74+Y77 -> 0

Sheet Бензорез К 760
A1: Эксплуатационная карта
A2: Работы механизма за | G2: =Нормы!G3 -> Март 2015 г | L2: Наименование и № подразделения | R2: КГКУ 9- ОПС | U2: 37- ПЧ
A3: Тип,марка,модель Бензорез "Хускварна" К 760
A5: Остаток топлива на 1-е число отчетного месяца | K5: ='отчёт '!F38 -> 0.61 | X5: литр.
A6: Заправлено топлива за отчетный месяц | I6: =U71 -> 0 | X6: литр.
A7: Остаток топлива на 1-е число следующего за отчетным месяцем | M7: =X71 -> 0.61 | X7: литр.
A8: Результат расхода топлива за отчетный месяц
E9: фактически | G9: =V71 -> 0 | J9: литр. | L9: Экономия _________________литр.
E10: по нормам | G10: =W71 -> 0 | J10: литр. | L10: Перерасход _________________литр.
A12: дата | B12: Наименование и место работы автомобиля(То,работа на пожаре,учениях и др) | G12: работа механизма | V12: расход топлива в литрах | X12: Остаток топлива | Y12: подписи
G13: время выезда | I13: время возвращения | K13: показания спидометра перед выездом | L13: пройдено км к месту работы и обратно | M13: на пожарах(в мин) | O13: на учениях (в мин) | Q13: при смене караула (в мин) | S13: на прочих работах | U13: заправлено топлива
G14: часы | H14: минуты | I14: часы | J14: минуты | M14: с насосом | N14: без насоса | O14: с насосом | P14: без насоса | Q14: с насосом | R14: без насоса | S14: с насосом | T14: без насоса | V14: фактически | W14: по нормам | Y14: водителя | Z14: начальника караула
A15: 1 | B15: 2 | G15: 3 | H15: 4 | I15: 5 | J15: 6 | K15: 7 | L15: 8 | M15: 9 | N15: 10 | O15: 11 | P15: 12 | Q15: 13 | R15: 14 | S15: 15 | T15: 16 | U15: 17 | V15: 18 | W15: 19 | X15: 20 | Y15: 21 | Z15: 22
A16: 1,03 | B16: Смена караула | V16: =W16 -> 0 | W16: =IF(L16="",0,L16)*КИЛОМЕТР+(M16+O16+Q16+S16)*НАСОС+(N16+P16+R16+T16)*БЕЗ_НАСОСА -> 0 | X16: =Остаток_на_начало_месяца-W16+U16 -> 0.61
V17: =W17 -> 0 | W17: 0 | X17: =IF(W17=0,"",X16-W17+U17) -> 
V18: =W18 -> 0 | W18: 0
V19: 0 | W19: 0
V20: 0 | W20: 0
V21: 0 | W21: 0
V22: 0 | W22: 0
V23: 0 | W23: 0
V24: 0 | W24: 0
V25: 0 | W25: 0
V26: 0 | W26: 0
V27: 0 | W27: 0
V28: 0 | W28: 0
V29: 0 | W29: 0
V30: 0 | W30: 0
V31: 0 | W31: 0
V32: 0 | W32: 0
V33: 0 | W33: 0
V34: 0 | W34: 0
V35: 0 | W35: 0
V36: 0 | W36: 0
V37: 0 | W37: 0
V38: 0 | W38: 0
V39: 0 | W39: 0
V40: 0 | W40: 0
V41: 0 | W41: 0
V42: 0 | W42: 0
V43: 0 | W43: 0
V44: 0 | W44: 0
V45: 0 | W45: 0
V46: 0 | W46: 0
V47: 0 | W47: 0
V48: 0 | W48: =IF(L48="",0,L48)*КИЛОМЕТР+(M48+O48+Q48+S48)*НАСОС+(N48+P48+R48+T48)*БЕЗ_НАСОСА -> 0
V49: 0 | W49: 0
V50: 0 | W50: 0
V51: 0 | W51: 0
V52: 0 | W52: 0
V53: 0 | W53: 0
V54: 0 | W54: 0
V55: 0 | W55: 0
V56: 0 | W56: 0
V57: 0 | W57: 0
V58: 0 | W58: 0
V59: 0 | W59: 0
L60: =IF(K61="","",K61-K60) ->  | V60: 0 | W60: 0
V61: 0 | W61: 0
V62: 0 | W62: 0
V63: 0 | W63: 0
V64: 0 | W64: 0
V65: 0 | W65: 0
V66: 0 | W66: 0
V67: 0 | W67: 0
V68: 0 | W68: 0
V69: 0 | W69: 0
V70: 0 | W70: 0 | X70: =IF(W70=0,"",X69-W70+U70) -> 
A71: ИТОГО за месяц | L71: =SUM(L16:L70) -> 0 | M71: 0 | N71: 0 | O71: 0 | P71: 0 | Q71: 0 | R71: 0 | S71: 0 | T71: 0 | U71: 0 | V71: 0 | W71: 0 | X71: =Остаток_на_начало_месяца+Заправлено-W71 -> 0.61
A72: Израсходовано топлива по элементам работы(в литрах) | L72: =L71*КИЛОМЕТР -> 0 | M72: =M71*НАСОС -> 0 | N72: =N71*БЕЗ_НАСОСА -> 0 | O72: =O71*НАСОС -> 0 | P72: =P71*БЕЗ_НАСОСА -> 0 | Q72: =Q71*НАСОС -> 0 | R72: =R71*БЕЗ_НАСОСА -> 0 | S72: =S71*НАСОС -> 0 | T72: =T71*БЕЗ_НАСОСА -> 0
B73: Наработка за отчетный месяц в км.(с учетом приведенного) | J73: =(M71+O71+Q71+S71)/60*50+L71 -> 0 | L73: км.
Q74: Текущая норма | V74: Пробег по спидометру, км | Y74: =L71 -> 0
C75: Руководитель подразделения | L75: Старший водитель | Q75: 1 км | V75: Наработка с насосом м.ч. | Y75: =(M71+O71+Q71+S71)/60 -> 0
C76: <_____>______________________2015г. | L76: <_____>_____________2015г. | Q76: 1 мин с насосом | T76: 0.0462 | V76: Наработка без насоса | Y76: =N71+P71+R71+T71 -> 0
F77: Коряков В.Н. | L77: Ломакин В.В. | Q77: 1 мин без насоса | T77: 0.0462 | V77: Приведенный пробег | Y77: =Y75*50 -> 0
V78: Общий пробег | Y78: =Y74+Y77 -> 0

Sheet "Спрут"
A1: Эксплуатационная карта
A2: Работы механизма за | G2: =Нормы!G3 -> Март 2015 г | L2: Наименование и № подразделения | R2: КГКУ 9- ОПС | U2: 37- ПЧ
A3: Тип,марка,модель ГАСИ "СПРУТ"
A5: Остаток топлива на 1-е число отчетного месяца | K5: ='отчёт '!F40 -> 0.11 | X5: литр.
A6: Заправлено топлива за отчетный месяц | I6: =U71 -> 0 | X6: литр.
A7: Остаток топлива на 1-е число следующего за отчетным месяцем | M7: =X71 -> 0.11 | X7: литр.
A8: Результат расхода топлива за отчетный месяц
E9: фактически | G9: =V71 -> 0 | J9: литр. | L9: Экономия _________________литр.
E10: по нормам | G10: =W71 -> 0 | J10: литр. | L10: Перерасход _________________литр.
A12: дата | B12: Наименование и место работы автомобиля(То,работа на пожаре,учениях и др) | G12: работа механизма | V12: расход топлива в литрах | X12: Остаток топлива | Y12: подписи
G13: время выезда | I13: время возвращения | K13: показания спидометра перед выездом | L13: пройдено км к месту работы и обратно | M13: на пожарах(в мин) | O13: на учениях (в мин) | Q13: при смене караула (в мин) | S13: на прочих работах | U13: заправлено топлива
G14: часы | H14: минуты | I14: часы | J14: минуты | M14: с насосом | N14: без насоса | O14: с насосом | P14: без насоса | Q14: с насосом | R14: без насоса | S14: с насосом | T14: без насоса | V14: фактически | W14: по нормам | Y14: водителя | Z14: начальника караула
A15: 1 | B15: 2 | G15: 3 | H15: 4 | I15: 5 | J15: 6 | K15: 7 | L15: 8 | M15: 9 | N15: 10 | O15: 11 | P15: 12 | Q15: 13 | R15: 14 | S15: 15 | T15: 16 | U15: 17 | V15: 18 | W15: 19 | X15: 20 | Y15: 21 | Z15: 22
A16: 1,03 | B16: Смена караула | V16: =W16 -> 0 | W16: =IF(L16="",0,L16)*КИЛОМЕТР+(M16+O16+Q16+S16)*НАСОС+(N16+P16+R16+T16)*БЕЗ_НАСОСА -> 0 | X16: =Остаток_на_начало_месяца-W16+U16 -> 0.11
V17: =W17 -> 0 | W17: 0 | X17: =IF(W17=0,"",X16-W17+U17) -> 
V18: =W18 -> 0 | W18: 0
V19: 0 | W19: 0
V20: 0 | W20: 0
V21: 0 | W21: 0
V22: 0 | W22: 0
V23: 0 | W23: 0
V24: 0 | W24: 0
V25: 0 | W25: 0
V26: 0 | W26: 0
V27: 0 | W27: 0
V28: 0 | W28: 0
V29: 0 | W29: 0
V30: 0 | W30: 0
V31: 0 | W31: 0
V32: 0 | W32: 0
V33: 0 | W33: 0
V34: 0 | W34: 0
V35: 0 | W35: 0
V36: 0 | W36: 0
V37: 0 | W37: 0
V38: 0 | W38: 0
V39: 0 | W39: 0
V40: 0 | W40: 0
V41: 0 | W41: 0
V42: 0 | W42: 0
V43: 0 | W43: 0
V44: 0 | W44: 0
V45: 0 | W45: 0
V46: 0 | W46: 0
V47: 0 | W47: 0
V48: 0 | W48: =IF(L48="",0,L48)*КИЛОМЕТР+(M48+O48+Q48+S48)*НАСОС+(N48+P48+R48+T48)*БЕЗ_НАСОСА -> 0
V49: 0 | W49: 0
V50: 0 | W50: 0
V51: 0 | W51: 0
V52: 0 | W52: 0
V53: 0 | W53: 0
V54: 0 | W54: 0
V55: 0 | W55: 0
V56: 0 | W56: 0
L57: =IF(K58="","",K58-K57) ->  | V57: 0 | W57: 0
V58: 0 | W58: 0
V59: 0 | W59: 0
V60: 0 | W60: 0
V61: 0 | W61: 0
V62: 0 | W62: 0
V63: 0 | W63: 0
L64: =IF(K65="","",K65-K64) ->  | V64: 0 | W64: 0
L65: =IF(K66="","",K66-K65) ->  | V65: 0 | W65: 0
V66: 0 | W66: 0
V67: 0 | W67: 0
V68: 0 | W68: 0
V69: 0 | W69: 0
V70: 0 | W70: 0 | X70: =IF(W70=0,"",X69-W70+U70) -> 
A71: ИТОГО за месяц | L71: =SUM(L16:L70) -> 0 | M71: 0 | N71: 0 | O71: 0 | P71: 0 | Q71: 0 | R71: 0 | S71: 0 | T71: 0 | U71: 0 | V71: 0 | W71: 0 | X71: =Остаток_на_начало_месяца+Заправлено-W71 -> 0.11
A72: Израсходовано топлива по элементам работы(в литрах) | L72: =L71*КИЛОМЕТР -> 0 | M72: =M71*НАСОС -> 0 | N72: =N71*БЕЗ_НАСОСА -> 0 | O72: =O71*НАСОС -> 0 | P72: =P71*БЕЗ_НАСОСА -> 0 | Q72: =Q71*НАСОС -> 0 | R72: =R71*БЕЗ_НАСОСА -> 0 | S72: =S71*НАСОС -> 0 | T72: =T71*БЕЗ_НАСОСА -> 0
B73: Наработка за отчетный месяц в км.(с учетом приведенного) | J73: =(M71+O71+Q71+S71)/60*50+L71 -> 0 | L73: км.
Q74: Текущая норма | V74: Пробег по спидометру, км | Y74: =L71 -> 0
C75: Руководитель подразделения | L75: Старший водитель | Q75: 1 км | V75: Наработка с насосом м.ч. | Y75: =(M71+O71+Q71+S71)/60 -> 0
C76: <_____>______________________2015г. | L76: <_____>_____________2015г. | Q76: 1 мин с насосом | T76: 0.0093 | V76: Наработка без насоса | Y76: =N71+P71+R71+T71 -> 0
F77: Коряков В.Н. | L77: Ломакин В.В. | Q77: 1 мин без насоса | T77: 0.0093 | V77: Приведенный пробег | Y77: =Y75*50 -> 0
V78: Общий пробег | Y78: =Y74+Y77 -> 0

Sheet Столб
A1: Эксплуатационная карта
A2: Работы механизма за | G2: =Нормы!G3 -> Март 2015 г | L2: Наименование и № подразделения | R2: КГКУ 9- ОПС | U2: 37- ПЧ
A3: Тип,марка,модель Аварийная осветительная установка TLG 600/400 S 2,7
A5: Остаток топлива на 1-е число отчетного месяца | K5: ='отчёт '!F41 -> 2.38 | X5: литр.
A6: Заправлено топлива за отчетный месяц | I6: =U71 -> 0 | X6: литр.
A7: Остаток топлива на 1-е число следующего за отчетным месяцем | M7: =X71 -> 2.38 | X7: литр.
A8: Результат расхода топлива за отчетный месяц
E9: фактически | G9: =V71 -> 0 | J9: литр. | L9: Экономия _________________литр.
E10: по нормам | G10: =W71 -> 0 | J10: литр. | L10: Перерасход _________________литр.
A12: дата | B12: Наименование и место работы автомобиля(То,работа на пожаре,учениях и др) | G12: работа механизма | V12: расход топлива в литрах | X12: Остаток топлива | Y12: подписи
G13: время выезда | I13: время возвращения | K13: показания спидометра перед выездом | L13: пройдено км к месту работы и обратно | M13: на пожарах(в мин) | O13: на учениях (в мин) | Q13: при смене караула (в мин) | S13: на прочих работах | U13: заправлено топлива
G14: часы | H14: минуты | I14: часы | J14: минуты | M14: с насосом | N14: без насоса | O14: с насосом | P14: без насоса | Q14: с насосом | R14: без насоса | S14: с насосом | T14: без насоса | V14: фактически | W14: по нормам | Y14: водителя | Z14: начальника караула
A15: 1 | B15: 2 | G15: 3 | H15: 4 | I15: 5 | J15: 6 | K15: 7 | L15: 8 | M15: 9 | N15: 10 | O15: 11 | P15: 12 | Q15: 13 | R15: 14 | S15: 15 | T15: 16 | U15: 17 | V15: 18 | W15: 19 | X15: 20 | Y15: 21 | Z15: 22
A16: 1,03 | B16: Смена караула | V16: =W16 -> 0 | W16: =IF(L16="",0,L16)*КИЛОМЕТР+(M16+O16+Q16+S16)*НАСОС+(N16+P16+R16+T16)*БЕЗ_НАСОСА -> 0 | X16: =Остаток_на_начало_месяца-W16+U16 -> 2.38
V17: =W17 -> 0 | W17: 0 | X17: =IF(W17=0,"",X16-W17+U17) -> 
V18: =W18 -> 0 | W18: 0
V19: 0 | W19: 0
V20: 0 | W20: 0
V21: 0 | W21: 0
V22: 0 | W22: 0
V23: 0 | W23: 0
V24: 0 | W24: 0
V25: 0 | W25: 0
V26: 0 | W26: 0
V27: 0 | W27: 0
V28: 0 | W28: 0
V29: 0 | W29: 0
V30: 0 | W30: 0
V31: 0 | W31: 0
V32: 0 | W32: 0
V33: 0 | W33: 0
V34: 0 | W34: 0
V35: 0 | W35: 0
V36: 0 | W36: 0
V37: 0 | W37: 0
V38: 0 | W38: 0
V39: 0 | W39: 0
V40: 0 | W40: 0
V41: 0 | W41: 0
V42: 0 | W42: 0
V43: 0 | W43: 0
V44: 0 | W44: 0
V45: 0 | W45: 0
V46: 0 | W46: 0
V47: 0 | W47: 0
V48: 0 | W48: =IF(L48="",0,L48)*КИЛОМЕТР+(M48+O48+Q48+S48)*НАСОС+(N48+P48+R48+T48)*БЕЗ_НАСОСА -> 0
V49: 0 | W49: 0
V50: 0 | W50: 0
V51: 0 | W51: 0
V52: 0 | W52: 0
V53: 0 | W53: 0
V54: 0 | W54: 0
V55: 0 | W55: 0
V56: 0 | W56: 0
L57: =IF(K58="","",K58-K57) ->  | V57: 0 | W57: 0
V58: 0 | W58: 0
V59: 0 | W59: 0
V60: 0 | W60: 0
V61: 0 | W61: 0
V62: 0 | W62: 0
V63: 0 | W63: 0
L64: =IF(K65="","",K65-K64) ->  | V64: 0 | W64: 0
L65: =IF(K66="","",K66-K65) ->  | V65: 0 | W65: 0
V66: 0 | W66: 0
V67: 0 | W67: 0
V68: 0 | W68: 0
V69: 0 | W69: 0
V70: 0 | W70: 0
A71: ИТОГО за месяц | L71: =SUM(L16:L70) -> 0 | M71: 0 | N71: 0 | O71: 0 | P71: 0 | Q71: 0 | R71: 0 | S71: 0 | T71: 0 | U71: 0 | V71: 0 | W71: 0 | X71: =Остаток_на_начало_месяца+Заправлено-W71 -> 2.38
A72: Израсходовано топлива по элементам работы(в литрах) | L72: =L71*КИЛОМЕТР -> 0 | M72: =M71*НАСОС -> 0 | N72: =N71*БЕЗ_НАСОСА -> 0 | O72: =O71*НАСОС -> 0 | P72: =P71*БЕЗ_НАСОСА -> 0 | Q72: =Q71*НАСОС -> 0 | R72: =R71*БЕЗ_НАСОСА -> 0 | S72: =S71*НАСОС -> 0 | T72: =T71*БЕЗ_НАСОСА -> 0
B73: Наработка за отчетный месяц в км.(с учетом приведенного) | J73: =(M71+O71+Q71+S71)/60*50+L71 -> 0 | L73: км.
Q74: Текущая норма | V74: Пробег по спидометру, км | Y74: =L71 -> 0
C75: Руководитель подразделения | L75: Старший водитель | Q75: 1 км | V75: Наработка с насосом м.ч. | Y75: =(M71+O71+Q71+S71)/60 -> 0
C76: <_____>______________________2015г. | L76: <_____>_____________2015г. | Q76: 1 мин с насосом | T76: 0.02 | V76: Наработка без насоса | Y76: =N71+P71+R71+T71 -> 0
F77: Коряков В.Н. | L77: Ломакин В.В. | Q77: 1 мин без насоса | T77: 0.02 | V77: Приведенный пробег | Y77: =Y75*50 -> 0
V78: Общий пробег | Y78: =Y74+Y77 -> 0

Sheet Дымосос
A1: Эксплуатационная карта
A2: Работы механизма за | G2: =Нормы!G3 -> Март 2015 г | L2: Наименование и № подразделения | R2: КГКУ 9- ОПС | U2: 37- ПЧ
A3: Тип,марка,модель Дымосос "Буран" ДПМ - 20
A5: Остаток топлива на 1-е число отчетного месяца | K5: ='отчёт '!F42 -> 2.76 | X5: литр.
A6: Заправлено топлива за отчетный месяц | I6: =U71 -> 0 | X6: литр.
A7: Остаток топлива на 1-е число следующего за отчетным месяцем | M7: =X71 -> 2.76 | X7: литр.
A8: Результат расхода топлива за отчетный месяц
E9: фактически | G9: =V71 -> 0 | J9: литр. | L9: Экономия _________________литр.
E10: по нормам | G10: =W71 -> 0 | J10: литр. | L10: Перерасход _________________литр.
A12: дата | B12: Наименование и место работы автомобиля(То,работа на пожаре,учениях и др) | G12: работа механизма | V12: расход топлива в литрах | X12: Остаток топлива | Y12: подписи
G13: время выезда | I13: время возвращения | K13: показания спидометра перед выездом | L13: пройдено км к месту работы и обратно | M13: на пожарах(в мин) | O13: на учениях (в мин) | Q13: при смене караула (в мин) | S13: на прочих работах | U13: заправлено топлива
G14: часы | H14: минуты | I14: часы | J14: минуты | M14: с насосом | N14: без насоса | O14: с насосом | P14: без насоса | Q14: с насосом | R14: без насоса | S14: с насосом | T14: без насоса | V14: фактически | W14: по нормам | Y14: водителя | Z14: начальника караула
A15: 1 | B15: 2 | G15: 3 | H15: 4 | I15: 5 | J15: 6 | K15: 7 | L15: 8 | M15: 9 | N15: 10 | O15: 11 | P15: 12 | Q15: 13 | R15: 14 | S15: 15 | T15: 16 | U15: 17 | V15: 18 | W15: 19 | X15: 20 | Y15: 21 | Z15: 22
A16: 1,03 | B16: Смена караула | V16: =W16 -> 0 | W16: =IF(L16="",0,L16)*КИЛОМЕТР+(M16+O16+Q16+S16)*НАСОС+(N16+P16+R16+T16)*БЕЗ_НАСОСА -> 0 | X16: =Остаток_на_начало_месяца-W16+U16 -> 2.76
V17: =W17 -> 0 | W17: 0 | X17: =IF(W17=0,"",X16-W17+U17) -> 
V18: =W18 -> 0 | W18: 0
V19: 0 | W19: 0
V20: 0 | W20: 0
V21: 0 | W21: 0
V22: 0 | W22: 0
V23: 0 | W23: 0
V24: 0 | W24: 0
V25: 0 | W25: 0
V26: 0 | W26: 0
V27: 0 | W27: 0
V28: 0 | W28: 0
V29: 0 | W29: 0
V30: 0 | W30: 0
V31: 0 | W31: 0
V32: 0 | W32: 0
V33: 0 | W33: 0
V34: 0 | W34: 0
V35: 0 | W35: 0
V36: 0 | W36: 0
V37: 0 | W37: 0
V38: 0 | W38: 0
V39: 0 | W39: 0
V40: 0 | W40: 0
V41: 0 | W41: 0
V42: 0 | W42: 0
V43: 0 | W43: 0
V44: 0 | W44: 0
V45: 0 | W45: 0
V46: 0 | W46: 0
V47: 0 | W47: 0
V48: 0 | W48: =IF(L48="",0,L48)*КИЛОМЕТР+(M48+O48+Q48+S48)*НАСОС+(N48+P48+R48+T48)*БЕЗ_НАСОСА -> 0
V49: 0 | W49: 0
V50: 0 | W50: 0
V51: 0 | W51: 0
V52: 0 | W52: 0
V53: 0 | W53: 0
V54: 0 | W54: 0
V55: 0 | W55: 0
V56: 0 | W56: 0
L57: =IF(K58="","",K58-K57) ->  | V57: 0 | W57: 0
V58: 0 | W58: 0
V59: 0 | W59: 0
V60: 0 | W60: 0
V61: 0 | W61: 0
V62: 0 | W62: 0
V63: 0 | W63: 0
L64: =IF(K65="","",K65-K64) ->  | V64: 0 | W64: 0
L65: =IF(K66="","",K66-K65) ->  | V65: 0 | W65: 0
V66: 0 | W66: 0
V67: 0 | W67: 0
V68: 0 | W68: 0
V69: 0 | W69: 0 | X69: =IF(W69=0,"",X68-W69+U69) -> 
V70: 0 | W70: 0
A71: ИТОГО за месяц | L71: =SUM(L16:L70) -> 0 | M71: 0 | N71: 0 | O71: 0 | P71: 0 | Q71: 0 | R71: 0 | S71: 0 | T71: 0 | U71: 0 | V71: 0 | W71: 0 | X71: =Остаток_на_начало_месяца+Заправлено-W71 -> 2.76
A72: Израсходовано топлива по элементам работы(в литрах) | L72: =L71*КИЛОМЕТР -> 0 | M72: =M71*НАСОС -> 0 | N72: =N71*БЕЗ_НАСОСА -> 0 | O72: =O71*НАСОС -> 0 | P72: =P71*БЕЗ_НАСОСА -> 0 | Q72: =Q71*НАСОС -> 0 | R72: =R71*БЕЗ_НАСОСА -> 0 | S72: =S71*НАСОС -> 0 | T72: =T71*БЕЗ_НАСОСА -> 0
B73: Наработка за отчетный месяц в км.(с учетом приведенного) | J73: =(M71+O71+Q71+S71)/60*50+L71 -> 0 | L73: км.
Q74: Текущая норма | V74: Пробег по спидометру, км | Y74: =L71 -> 0
C75: Руководитель подразделения | L75: Старший водитель | Q75: 1 км | V75: Наработка с насосом м.ч. | Y75: =(M71+O71+Q71+S71)/60 -> 0
C76: <_____>______________________2015г. | L76: <_____>_____________2015г. | Q76: 1 мин с насосом | T76: 0.077 | V76: Наработка без насоса | Y76: =N71+P71+R71+T71 -> 0
F77: Коряков В.Н. | L77: Ломакин В.В. | Q77: 1 мин без насоса | T77: 0.077 | V77: Приведенный пробег | Y77: =Y75*50 -> 0
V78: Общий пробег | Y78: =Y74+Y77 -> 0

Sheet ВРМ-160
A1: Эксплуатационная карта
A2: Работы механизма за | G2: =Нормы!G3 -> Март 2015 г | L2: Наименование и № подразделения | R2: КГКУ 9- ОПС | U2: 37- ПЧ
A3: Тип,марка,модель Моновентилятор ВРМ-160
A5: Остаток топлива на 1-е число отчетного месяца | K5: ='отчёт '!F43 -> 0.44 | X5: литр.
A6: Заправлено топлива за отчетный месяц | I6: =U71 -> 0 | X6: литр.
A7: Остаток топлива на 1-е число следующего за отчетным месяцем | M7: =X71 -> 0.44 | X7: литр.
A8: Результат расхода топлива за отчетный месяц
E9: фактически | G9: =V71 -> 0 | J9: литр. | L9: Экономия _________________литр.
E10: по нормам | G10: =W71 -> 0 | J10: литр. | L10: Перерасход _________________литр.
A12: дата | B12: Наименование и место работы автомобиля(То,работа на пожаре,учениях и др) | G12: работа механизма | V12: расход топлива в литрах | X12: Остаток топлива | Y12: подписи
G13: время выезда | I13: время возвращения | K13: показания спидометра перед выездом | L13: пройдено км к месту работы и обратно | M13: на пожарах(в мин) | O13: на учениях (в мин) | Q13: при смене караула (в мин) | S13: на прочих работах | U13: заправлено топлива
G14: часы | H14: минуты | I14: часы | J14: минуты | M14: с насосом | N14: без насоса | O14: с насосом | P14: без насоса | Q14: с насосом | R14: без насоса | S14: с насосом | T14: без насоса | V14: фактически | W14: по нормам | Y14: водителя | Z14: начальника караула
A15: 1 | B15: 2 | G15: 3 | H15: 4 | I15: 5 | J15: 6 | K15: 7 | L15: 8 | M15: 9 | N15: 10 | O15: 11 | P15: 12 | Q15: 13 | R15: 14 | S15: 15 | T15: 16 | U15: 17 | V15: 18 | W15: 19 | X15: 20 | Y15: 21 | Z15: 22
A16: 1,03 | B16: Смена караула | V16: =W16 -> 0 | W16: =IF(L16="",0,L16)*КИЛОМЕТР+(M16+O16+Q16+S16)*НАСОС+(N16+P16+R16+T16)*БЕЗ_НАСОСА -> 0 | X16: =Остаток_на_начало_месяца-W16+U16 -> 0.44
V17: =W17 -> 0 | W17: 0 | X17: =IF(W17=0,"",X16-W17+U17) -> 
V18: =W18 -> 0 | W18: 0
V19: 0 | W19: 0
V20: 0 | W20: 0
V21: 0 | W21: 0
V22: 0 | W22: 0
V23: 0 | W23: 0
V24: 0 | W24: 0
V25: 0 | W25: 0
V26: 0 | W26: 0
V27: 0 | W27: 0
V28: 0 | W28: 0
V29: 0 | W29: 0
V30: 0 | W30: 0
V31: 0 | W31: 0
V32: 0 | W32: 0
V33: 0 | W33: 0
V34: 0 | W34: 0
V35: 0 | W35: 0
V36: 0 | W36: 0
V37: 0 | W37: 0
V38: 0 | W38: 0
V39: 0 | W39: 0
V40: 0 | W40: 0
V41: 0 | W41: 0
V42: 0 | W42: 0
V43: 0 | W43: 0
V44: 0 | W44: 0
V45: 0 | W45: 0
V46: 0 | W46: 0
V47: 0 | W47: 0
V48: 0 | W48: =IF(L48="",0,L48)*КИЛОМЕТР+(M48+O48+Q48+S48)*НАСОС+(N48+P48+R48+T48)*БЕЗ_НАСОСА -> 0
V49: 0 | W49: 0
V50: 0 | W50: 0
V51: 0 | W51: 0
V52: 0 | W52: 0
V53: 0 | W53: 0
V54: 0 | W54: 0
V55: 0 | W55: 0
V56: 0 | W56: 0
L57: =IF(K58="","",K58-K57) ->  | V57: 0 | W57: 0
V58: 0 | W58: 0
V59: 0 | W59: 0
V60: 0 | W60: 0
V61: 0 | W61: 0
V62: 0 | W62: 0
V63: 0 | W63: 0
L64: =IF(K65="","",K65-K64) ->  | V64: 0 | W64: 0
L65: =IF(K66="","",K66-K65) ->  | V65: 0 | W65: 0
V66: 0 | W66: 0
V67: 0 | W67: 0
V68: 0 | W68: 0
V69: 0 | W69: 0
V70: 0 | W70: 0
A71: ИТОГО за месяц | L71: =SUM(L16:L70) -> 0 | M71: 0 | N71: 0 | O71: 0 | P71: 0 | Q71: 0 | R71: 0 | S71: 0 | T71: 0 | U71: 0 | V71: 0 | W71: 0 | X71: =Остаток_на_начало_месяца+Заправлено-W71 -> 0.44
A72: Израсходовано топлива по элементам работы(в литрах) | L72: =L71*КИЛОМЕТР -> 0 | M72: =M71*НАСОС -> 0 | N72: =N71*БЕЗ_НАСОСА -> 0 | O72: =O71*НАСОС -> 0 | P72: =P71*БЕЗ_НАСОСА -> 0 | Q72: =Q71*НАСОС -> 0 | R72: =R71*БЕЗ_НАСОСА -> 0 | S72: =S71*НАСОС -> 0 | T72: =T71*БЕЗ_НАСОСА -> 0
B73: Наработка за отчетный месяц в км.(с учетом приведенного) | J73: =(M71+O71+Q71+S71)/60*50+L71 -> 0 | L73: км.
Q74: Текущая норма | V74: Пробег по спидометру, км | Y74: =L71 -> 0
C75: Руководитель подразделения | L75: Старший водитель | Q75: 1 км | V75: Наработка с насосом м.ч. | Y75: =(M71+O71+Q71+S71)/60 -> 0
C76: <_____>______________________2015г. | L76: <_____>_____________2015г. | Q76: 1 мин с насосом | T76: 0.01 | V76: Наработка без насоса | Y76: =N71+P71+R71+T71 -> 0
F77: Коряков В.Н. | L77: Ломакин В.В. | Q77: 1 мин без насоса | T77: 0.01 | V77: Приведенный пробег | Y77: =Y75*50 -> 0
V78: Общий пробег | Y78: =Y74+Y77 -> 0

Sheet Вепрь АПВ-6
A1: Эксплуатационная карта
A2: Работы механизма за | G2: =Нормы!G3 -> Март 2015 г | L2: Наименование и № подразделения | R2: КГКУ 9- ОПС | U2: 37- ПЧ
A3: Тип,марка,модель Генератор "Вепрь" АПВ 6-230 ВХ Т3 699
A5: Остаток топлива на 1-е число отчетного месяца | K5: ='отчёт '!F44 -> 3.56 | X5: литр.
A6: Заправлено топлива за отчетный месяц | I6: =U71 -> 0 | X6: литр.
A7: Остаток топлива на 1-е число следующего за отчетным месяцем | M7: =X71 -> 3.56 | X7: литр.
A8: Результат расхода топлива за отчетный месяц
E9: фактически | G9: =V71 -> 0 | J9: литр. | L9: Экономия _________________литр.
E10: по нормам | G10: =W71 -> 0 | J10: литр. | L10: Перерасход _________________литр.
A12: дата | B12: Наименование и место работы автомобиля(То,работа на пожаре,учениях и др) | G12: работа механизма | V12: расход топлива в литрах | X12: Остаток топлива | Y12: подписи
G13: время выезда | I13: время возвращения | K13: показания спидометра перед выездом | L13: пройдено км к месту работы и обратно | M13: на пожарах(в мин) | O13: на учениях (в мин) | Q13: при смене караула (в мин) | S13: на прочих работах | U13: заправлено топлива
G14: часы | H14: минуты | I14: часы | J14: минуты | M14: с насосом | N14: без насоса | O14: с насосом | P14: без насоса | Q14: с насосом | R14: без насоса | S14: с насосом | T14: без насоса | V14: фактически | W14: по нормам | Y14: водителя | Z14: начальника караула
A15: 1 | B15: 2 | G15: 3 | H15: 4 | I15: 5 | J15: 6 | K15: 7 | L15: 8 | M15: 9 | N15: 10 | O15: 11 | P15: 12 | Q15: 13 | R15: 14 | S15: 15 | T15: 16 | U15: 17 | V15: 18 | W15: 19 | X15: 20 | Y15: 21 | Z15: 22
A16: 1,03 | B16: Смена караула | V16: =W16 -> 0 | W16: =IF(L16="",0,L16)*КИЛОМЕТР+(M16+O16+Q16+S16)*НАСОС+(N16+P16+R16+T16)*БЕЗ_НАСОСА -> 0 | X16: =Остаток_на_начало_месяца-W16+U16 -> 3.56
V17: =W17 -> 0 | W17: 0 | X17: =IF(W17=0,"",X16-W17+U17) -> 
V18: =W18 -> 0 | W18: 0
V19: 0 | W19: 0
V20: 0 | W20: 0
V21: 0 | W21: 0
V22: 0 | W22: 0
V23: 0 | W23: 0
V24: 0 | W24: 0
V25: 0 | W25: 0
V26: 0 | W26: 0
V27: 0 | W27: 0
V28: 0 | W28: 0
V29: 0 | W29: 0
V30: 0 | W30: 0
V31: 0 | W31: 0
V32: 0 | W32: 0
V33: 0 | W33: 0
V34: 0 | W34: 0
V35: 0 | W35: 0
V36: 0 | W36: 0
V37: 0 | W37: 0
V38: 0 | W38: 0
V39: 0 | W39: 0
V40: 0 | W40: 0
V41: 0 | W41: 0
V42: 0 | W42: 0
V43: 0 | W43: 0
V44: 0 | W44: 0
V45: 0 | W45: 0
V46: 0 | W46: 0
V47: 0 | W47: 0
V48: 0 | W48: =IF(L48="",0,L48)*КИЛОМЕТР+(M48+O48+Q48+S48)*НАСОС+(N48+P48+R48+T48)*БЕЗ_НАСОСА -> 0
V49: 0 | W49: 0
V50: 0 | W50: 0
V51: 0 | W51: 0
V52: 0 | W52: 0
V53: 0 | W53: 0
V54: 0 | W54: 0
V55: 0 | W55: 0
V56: 0 | W56: 0
L57: =IF(K58="","",K58-K57) ->  | V57: 0 | W57: 0
V58: 0 | W58: 0
V59: 0 | W59: 0
V60: 0 | W60: 0
V61: 0 | W61: 0
V62: 0 | W62: 0
V63: 0 | W63: 0
L64: =IF(K65="","",K65-K64) ->  | V64: 0 | W64: 0
L65: =IF(K66="","",K66-K65) ->  | V65: 0 | W65: 0
V66: 0 | W66: 0
V67: 0 | W67: 0
V68: 0 | W68: 0
V69: 0 | W69: 0
V70: 0 | W70: 0
A71: ИТОГО за месяц | L71: =SUM(L16:L70) -> 0 | M71: 0 | N71: 0 | O71: 0 | P71: 0 | Q71: 0 | R71: 0 | S71: 0 | T71: 0 | U71: 0 | V71: 0 | W71: 0 | X71: =Остаток_на_начало_месяца+Заправлено-W71 -> 3.56
A72: Израсходовано топлива по элементам работы(в литрах) | L72: =L71*КИЛОМЕТР -> 0 | M72: =M71*НАСОС -> 0 | N72: =N71*БЕЗ_НАСОСА -> 0 | O72: =O71*НАСОС -> 0 | P72: =P71*БЕЗ_НАСОСА -> 0 | Q72: =Q71*НАСОС -> 0 | R72: =R71*БЕЗ_НАСОСА -> 0 | S72: =S71*НАСОС -> 0 | T72: =T71*БЕЗ_НАСОСА -> 0
B73: Наработка за отчетный месяц в км.(с учетом приведенного) | J73: =(M71+O71+Q71+S71)/60*50+L71 -> 0 | L73: км.
Q74: Текущая норма | V74: Пробег по спидометру, км | Y74: =L71 -> 0
C75: Руководитель подразделения | L75: Старший водитель | Q75: 1 км | V75: Наработка с насосом м.ч. | Y75: =(M71+O71+Q71+S71)/60 -> 0
C76: <_____>______________________2015г. | L76: <_____>_______________2015г. | Q76: 1 мин с насосом | T76: 0.04 | V76: Наработка без насоса | Y76: =N71+P71+R71+T71 -> 0
F77: Коряков В.Н. | L77: Ломакин В.В. | Q77: 1 мин без насоса | T77: 0.04 | V77: Приведенный пробег | Y77: =Y75*50 -> 0
V78: Общий пробег | Y78: =Y74+Y77 -> 0

Sheet SH-6000
A1: Эксплуатационная карта
A2: Работы механизма за | G2: =Нормы!G3 -> Март 2015 г | L2: Наименование и № подразделения | R2: КГКУ 9- ОПС | U2: 37- ПЧ
A3: Тип,марка,модель Генератор SH-6000
A5: Остаток топлива на 1-е число отчетного месяца | K5: ='отчёт '!F45 -> 4.03 | X5: литр.
A6: Заправлено топлива за отчетный месяц | I6: =U71 -> 0 | X6: литр.
A7: Остаток топлива на 1-е число следующего за отчетным месяцем | M7: =X71 -> 4.03 | X7: литр.
A8: Результат расхода топлива за отчетный месяц
E9: фактически | G9: =V71 -> 0 | J9: литр. | L9: Экономия _________________литр.
E10: по нормам | G10: =W71 -> 0 | J10: литр. | L10: Перерасход _________________литр.
A12: дата | B12: Наименование и место работы автомобиля(То,работа на пожаре,учениях и др) | G12: работа механизма | V12: расход топлива в литрах | X12: Остаток топлива | Y12: подписи
G13: время выезда | I13: время возвращения | K13: показания спидометра перед выездом | L13: пройдено км к месту работы и обратно | M13: на пожарах(в мин) | O13: на учениях (в мин) | Q13: при смене караула (в мин) | S13: на прочих работах | U13: заправлено топлива
G14: часы | H14: минуты | I14: часы | J14: минуты | M14: с насосом | N14: без насоса | O14: с насосом | P14: без насоса | Q14: с насосом | R14: без насоса | S14: с насосом | T14: без насоса | V14: фактически | W14: по нормам | Y14: водителя | Z14: начальника караула
A15: 1 | B15: 2 | G15: 3 | H15: 4 | I15: 5 | J15: 6 | K15: 7 | L15: 8 | M15: 9 | N15: 10 | O15: 11 | P15: 12 | Q15: 13 | R15: 14 | S15: 15 | T15: 16 | U15: 17 | V15: 18 | W15: 19 | X15: 20 | Y15: 21 | Z15: 22
A16: 1,03 | B16: Смена караула | V16: =W16 -> 0 | W16: =IF(L16="",0,L16)*КИЛОМЕТР+(M16+O16+Q16+S16)*НАСОС+(N16+P16+R16+T16)*БЕЗ_НАСОСА -> 0 | X16: =Остаток_на_начало_месяца-W16+U16 -> 4.03
V17: =W17 -> 0 | W17: 0 | X17: =IF(W17=0,"",X16-W17+U17) -> 
V18: =W18 -> 0 | W18: 0
V19: 0 | W19: 0
V20: 0 | W20: 0
V21: 0 | W21: 0
V22: 0 | W22: 0
V23: 0 | W23: 0
V24: 0 | W24: 0
V25: 0 | W25: 0
V26: 0 | W26: 0
V27: 0 | W27: 0
V28: 0 | W28: 0
V29: 0 | W29: 0
V30: 0 | W30: 0
V31: 0 | W31: 0
V32: 0 | W32: 0
V33: 0 | W33: 0
V34: 0 | W34: 0
V35: 0 | W35: 0
V36: 0 | W36: 0
V37: 0 | W37: 0
V38: 0 | W38: 0
V39: 0 | W39: 0
V40: 0 | W40: 0
V41: 0 | W41: 0
V42: 0 | W42: 0
V43: 0 | W43: 0
V44: 0 | W44: 0
V45: 0 | W45: 0
V46: 0 | W46: 0
V47: 0 | W47: 0
V48: 0 | W48: =IF(L48="",0,L48)*КИЛОМЕТР+(M48+O48+Q48+S48)*НАСОС+(N48+P48+R48+T48)*БЕЗ_НАСОСА -> 0
V49: 0 | W49: 0
V50: 0 | W50: 0
V51: 0 | W51: 0
V52: 0 | W52: 0
V53: 0 | W53: 0
V54: 0 | W54: 0
V55: 0 | W55: 0
V56: 0 | W56: 0
L57: =IF(K58="","",K58-K57) ->  | V57: 0 | W57: 0
V58: 0 | W58: 0
V59: 0 | W59: 0
V60: 0 | W60: 0
V61: 0 | W61: 0
V62: 0 | W62: 0
V63: 0 | W63: 0
L64: =IF(K65="","",K65-K64) ->  | V64: 0 | W64: 0
L65: =IF(K66="","",K66-K65) ->  | V65: 0 | W65: 0
V66: 0 | W66: 0
V67: 0 | W67: 0
V68: 0 | W68: 0
V69: 0 | W69: 0
V70: 0 | W70: 0
A71: ИТОГО за месяц | L71: =SUM(L16:L70) -> 0 | M71: 0 | N71: 0 | O71: 0 | P71: 0 | Q71: 0 | R71: 0 | S71: 0 | T71: 0 | U71: 0 | V71: 0 | W71: 0 | X71: =Остаток_на_начало_месяца+Заправлено-W71 -> 4.03
A72: Израсходовано топлива по элементам работы(в литрах) | L72: =L71*КИЛОМЕТР -> 0 | M72: =M71*НАСОС -> 0 | N72: =N71*БЕЗ_НАСОСА -> 0 | O72: =O71*НАСОС -> 0 | P72: =P71*БЕЗ_НАСОСА -> 0 | Q72: =Q71*НАСОС -> 0 | R72: =R71*БЕЗ_НАСОСА -> 0 | S72: =S71*НАСОС -> 0 | T72: =T71*БЕЗ_НАСОСА -> 0
B73: Наработка за отчетный месяц в км.(с учетом приведенного) | J73: =(M71+O71+Q71+S71)/60*50+L71 -> 0 | L73: км.
Q74: Текущая норма | V74: Пробег по спидометру, км | Y74: =L71 -> 0
C75: Руководитель подразделения | L75: Старший водитель | Q75: 1 км | V75: Наработка с насосом м.ч. | Y75: =(M71+O71+Q71+S71)/60 -> 0
C76: <_____>______________________2015г. | L76: <_____>_____________2015г. | Q76: 1 мин с насосом | T76: 0.039 | V76: Наработка без насоса | Y76: =N71+P71+R71+T71 -> 0
F77: Коряков В.Н. | L77: Ломакин В.В. | Q77: 1 мин без насоса | T77: 0.039 | V77: Приведенный пробег | Y77: =Y75*50 -> 0
V78: Общий пробег | Y78: =Y74+Y77 -> 0

Sheet SH-6500
A1: Эксплуатационная карта
A2: Работы механизма за | G2: =Нормы!G3 -> Март 2015 г | L2: Наименование и № подразделения | R2: КГКУ 9- ОПС | U2: 37- ПЧ
A3: Тип,марка,модель Генератор SH-6500
A5: Остаток топлива на 1-е число отчетного месяца | K5: ='отчёт '!F46 -> 4.78 | X5: литр.
A6: Заправлено топлива за отчетный месяц | I6: =U71 -> 0 | X6: литр.
A7: Остаток топлива на 1-е число следующего за отчетным месяцем | M7: =X71 -> 4.78 | X7: литр.
A8: Результат расхода топлива за отчетный месяц
E9: фактически | G9: =V71 -> 0 | J9: литр. | L9: Экономия _________________литр.
E10: по нормам | G10: =W71 -> 0 | J10: литр. | L10: Перерасход _________________литр.
A12: дата | B12: Наименование и место работы автомобиля(То,работа на пожаре,учениях и др) | G12: работа механизма | V12: расход топлива в литрах | X12: Остаток топлива | Y12: подписи
G13: время выезда | I13: время возвращения | K13: показания спидометра перед выездом | L13: пройдено км к месту работы и обратно | M13: на пожарах(в мин) | O13: на учениях (в мин) | Q13: при смене караула (в мин) | S13: на прочих работах | U13: заправлено топлива
G14: часы | H14: минуты | I14: часы | J14: минуты | M14: с насосом | N14: без насоса | O14: с насосом | P14: без насоса | Q14: с насосом | R14: без насоса | S14: с насосом | T14: без насоса | V14: фактически | W14: по нормам | Y14: водителя | Z14: начальника караула
A15: 1 | B15: 2 | G15: 3 | H15: 4 | I15: 5 | J15: 6 | K15: 7 | L15: 8 | M15: 9 | N15: 10 | O15: 11 | P15: 12 | Q15: 13 | R15: 14 | S15: 15 | T15: 16 | U15: 17 | V15: 18 | W15: 19 | X15: 20 | Y15: 21 | Z15: 22
A16: 1,03 | B16: Смена караула | V16: =W16 -> 0 | W16: =IF(L16="",0,L16)*КИЛОМЕТР+(M16+O16+Q16+S16)*НАСОС+(N16+P16+R16+T16)*БЕЗ_НАСОСА -> 0 | X16: =Остаток_на_начало_месяца-W16+U16 -> 4.78
V17: =W17 -> 0 | W17: 0 | X17: =IF(W17=0,"",X16-W17+U17) -> 
V18: =W18 -> 0 | W18: 0
V19: 0 | W19: 0
V20: 0 | W20: 0
V21: 0 | W21: 0
V22: 0 | W22: 0
V23: 0 | W23: 0
V24: 0 | W24: 0
V25: 0 | W25: 0
V26: 0 | W26: 0
V27: 0 | W27: 0
V28: 0 | W28: 0
V29: 0 | W29: 0
V30: 0 | W30: 0
V31: 0 | W31: 0
V32: 0 | W32: 0
V33: 0 | W33: 0
V34: 0 | W34: 0
V35: 0 | W35: 0
V36: 0 | W36: 0
V37: 0 | W37: 0
V38: 0 | W38: 0
V39: 0 | W39: 0
V40: 0 | W40: 0
V41: 0 | W41: 0
V42: 0 | W42: 0
V43: 0 | W43: 0
V44: 0 | W44: 0
V45: 0 | W45: 0
V46: 0 | W46: 0
V47: 0 | W47: 0
V48: 0 | W48: =IF(L48="",0,L48)*КИЛОМЕТР+(M48+O48+Q48+S48)*НАСОС+(N48+P48+R48+T48)*БЕЗ_НАСОСА -> 0
V49: 0 | W49: 0
V50: 0 | W50: 0
V51: 0 | W51: 0
V52: 0 | W52: 0
V53: 0 | W53: 0
V54: 0 | W54: 0
V55: 0 | W55: 0
V56: 0 | W56: 0
L57: =IF(K58="","",K58-K57) ->  | V57: 0 | W57: 0
V58: 0 | W58: 0
V59: 0 | W59: 0
V60: 0 | W60: 0
V61: 0 | W61: 0
V62: 0 | W62: 0
V63: 0 | W63: 0
L64: =IF(K65="","",K65-K64) ->  | V64: 0 | W64: 0
L65: =IF(K66="","",K66-K65) ->  | V65: 0 | W65: 0
V66: 0 | W66: 0
V67: 0 | W67: 0
V68: 0 | W68: 0
V69: 0 | W69: 0
V70: 0 | W70: 0
A71: ИТОГО за месяц | L71: =SUM(L16:L70) -> 0 | M71: 0 | N71: 0 | O71: 0 | P71: 0 | Q71: 0 | R71: 0 | S71: 0 | T71: 0 | U71: 0 | V71: 0 | W71: 0 | X71: =Остаток_на_начало_месяца+Заправлено-W71 -> 4.78
A72: Израсходовано топлива по элементам работы(в литрах) | L72: =L71*КИЛОМЕТР -> 0 | M72: =M71*НАСОС -> 0 | N72: =N71*БЕЗ_НАСОСА -> 0 | O72: =O71*НАСОС -> 0 | P72: =P71*БЕЗ_НАСОСА -> 0 | Q72: =Q71*НАСОС -> 0 | R72: =R71*БЕЗ_НАСОСА -> 0 | S72: =S71*НАСОС -> 0 | T72: =T71*БЕЗ_НАСОСА -> 0
B73: Наработка за отчетный месяц в км.(с учетом приведенного) | J73: =(M71+O71+Q71+S71)/60*50+L71 -> 0 | L73: км.
Q74: Текущая норма | V74: Пробег по спидометру, км | Y74: =L71 -> 0
C75: Руководитель подразделения | L75: Старший водитель | Q75: 1 км | V75: Наработка с насосом м.ч. | Y75: =(M71+O71+Q71+S71)/60 -> 0
C76: <_____>______________________2015г. | L76: <_____>_______________2015г. | Q76: 1 мин с насосом | T76: 0.047 | V76: Наработка без насоса | Y76: =N71+P71+R71+T71 -> 0
F77: Коряков В.Н. | L77: Ломакин В.В. | Q77: 1 мин без насоса | T77: 0.047 | V77: Приведенный пробег | Y77: =Y75*50 -> 0
V78: Общий пробег | Y78: =Y74+Y77 -> 0

Sheet АДП-16
A1: Эксплуатационная карта
A2: Работы механизма за | G2: =Нормы!G3 -> Март 2015 г | L2: Наименование и № подразделения | R2: КГКУ 9- ОПС | U2: 37- ПЧ
A3: Тип,марка,модель Генератор АДП 16-Т 400 ВЛ
A5: Остаток топлива на 1-е число отчетного месяца | K5: ='отчёт '!F47 -> 16.52 | X5: литр.
A6: Заправлено топлива за отчетный месяц | I6: =U71 -> 0 | X6: литр.
A7: Остаток топлива на 1-е число следующего за отчетным месяцем | M7: =X71 -> 16.52 | X7: литр.
A8: Результат расхода топлива за отчетный месяц
E9: фактически | G9: =V71 -> 0 | J9: литр. | L9: Экономия _________________литр.
E10: по нормам | G10: =W71 -> 0 | J10: литр. | L10: Перерасход _________________литр.
A12: дата | B12: Наименование и место работы автомобиля(То,работа на пожаре,учениях и др) | G12: работа механизма | V12: расход топлива в литрах | X12: Остаток топлива | Y12: подписи
G13: время выезда | I13: время возвращения | K13: показания спидометра перед выездом | L13: пройдено км к месту работы и обратно | M13: на пожарах(в мин) | O13: на учениях (в мин) | Q13: при смене караула (в мин) | S13: на прочих работах | U13: заправлено топлива
G14: часы | H14: минуты | I14: часы | J14: минуты | M14: с насосом | N14: без насоса | O14: с насосом | P14: без насоса | Q14: с насосом | R14: без насоса | S14: с насосом | T14: без насоса | V14: фактически | W14: по нормам | Y14: водителя | Z14: начальника караула
A15: 1 | B15: 2 | G15: 3 | H15: 4 | I15: 5 | J15: 6 | K15: 7 | L15: 8 | M15: 9 | N15: 10 | O15: 11 | P15: 12 | Q15: 13 | R15: 14 | S15: 15 | T15: 16 | U15: 17 | V15: 18 | W15: 19 | X15: 20 | Y15: 21 | Z15: 22
A16: 1,03 | B16: Смена караула | V16: =W16 -> 0 | W16: =IF(L16="",0,L16)*КИЛОМЕТР+(M16+O16+Q16+S16)*НАСОС+(N16+P16+R16+T16)*БЕЗ_НАСОСА -> 0 | X16: =Остаток_на_начало_месяца-W16+U16 -> 16.52
V17: =W17 -> 0 | W17: 0 | X17: =IF(W17=0,"",X16-W17+U17) -> 
V18: =W18 -> 0 | W18: 0
V19: 0 | W19: 0
V20: 0 | W20: 0
V21: 0 | W21: 0
V22: 0 | W22: 0
V23: 0 | W23: 0
V24: 0 | W24: 0
V25: 0 | W25: 0
V26: 0 | W26: 0
V27: 0 | W27: 0
V28: 0 | W28: 0
V29: 0 | W29: 0
V30: 0 | W30: 0
V31: 0 | W31: 0
V32: 0 | W32: 0
V33: 0 | W33: 0
V34: 0 | W34: 0
V35: 0 | W35: 0
V36: 0 | W36: 0
V37: 0 | W37: 0
V38: 0 | W38: 0
V39: 0 | W39: 0
V40: 0 | W40: 0
V41: 0 | W41: 0
V42: 0 | W42: 0
V43: 0 | W43: 0
V44: 0 | W44: 0
V45: 0 | W45: 0
V46: 0 | W46: 0
V47: 0 | W47: 0
V48: 0 | W48: =IF(L48="",0,L48)*КИЛОМЕТР+(M48+O48+Q48+S48)*НАСОС+(N48+P48+R48+T48)*БЕЗ_НАСОСА -> 0
V49: 0 | W49: 0
V50: 0 | W50: 0
V51: 0 | W51: 0
V52: 0 | W52: 0
V53: 0 | W53: 0
V54: 0 | W54: 0
V55: 0 | W55: 0
V56: 0 | W56: 0
L57: =IF(K58="","",K58-K57) ->  | V57: 0 | W57: 0
V58: 0 | W58: 0
V59: 0 | W59: 0
V60: 0 | W60: 0
V61: 0 | W61: 0
V62: 0 | W62: 0
V63: 0 | W63: 0
V64: 0 | W64: 0
L65: =IF(K66="","",K66-K65) ->  | V65: 0 | W65: 0
V66: 0 | W66: 0
V67: 0 | W67: 0
V68: 0 | W68: 0
V69: 0 | W69: 0
V70: 0 | W70: 0
A71: ИТОГО за месяц | L71: =SUM(L16:L70) -> 0 | M71: 0 | N71: 0 | O71: 0 | P71: 0 | Q71: 0 | R71: 0 | S71: 0 | T71: 0 | U71: 0 | V71: 0 | W71: 0 | X71: =Остаток_на_начало_месяца+Заправлено-W71 -> 16.52
A72: Израсходовано топлива по элементам работы(в литрах) | L72: =L71*КИЛОМЕТР -> 0 | M72: =M71*НАСОС -> 0 | N72: =N71*БЕЗ_НАСОСА -> 0 | O72: =O71*НАСОС -> 0 | P72: =P71*БЕЗ_НАСОСА -> 0 | Q72: =Q71*НАСОС -> 0 | R72: =R71*БЕЗ_НАСОСА -> 0 | S72: =S71*НАСОС -> 0 | T72: =T71*БЕЗ_НАСОСА -> 0
B73: Наработка за отчетный месяц в км.(с учетом приведенного) | J73: =(M71+O71+Q71+S71)/60*50+L71 -> 0 | L73: км.
Q74: Текущая норма | V74: Пробег по спидометру, км | Y74: =L71 -> 0
C75: Руководитель подразделения | L75: Старший водитель | Q75: 1 км | V75: Наработка с насосом м.ч. | Y75: =(M71+O71+Q71+S71)/60 -> 0
C76: <_____>______________________2015г. | L76: <_____>_______________2015г. | Q76: 1 мин с насосом | T76: 0.043 | V76: Наработка без насоса | Y76: =N71+P71+R71+T71 -> 0
F77: Коряков В.Н. | L77: Ломакин В.В. | Q77: 1 мин без насоса | T77: 0.043 | V77: Приведенный пробег | Y77: =Y75*50 -> 0
V78: Общий пробег | Y78: =Y74+Y77 -> 0

Sheet Бензокоса
A1: Эксплуатационная карта
A2: Работы механизма за | G2: =Нормы!G3 -> Март 2015 г | L2: Наименование и № подразделения | R2: КГКУ 9- ОПС | U2: 37- ПЧ
A3: Тип,марка,модель Бензокоса SPARTA
A5: Остаток топлива на 1-е число отчетного месяца | K5: ='отчёт '!F48 -> 0.08 | X5: литр.
A6: Заправлено топлива за отчетный месяц | I6: =U39 -> 0 | X6: литр.
A7: Остаток топлива на 1-е число следующего за отчетным месяцем | M7: =X39 -> 0.08 | X7: литр.
A8: Результат расхода топлива за отчетный месяц
E9: фактически | G9: =V39 -> 0 | J9: литр. | L9: Экономия _________________литр.
E10: по нормам | G10: =W39 -> 0 | J10: литр. | L10: Перерасход _________________литр.
A12: дата | B12: Наименование и место работы автомобиля(То,работа на пожаре,учениях и др) | G12: работа механизма | V12: расход топлива в литрах | X12: Остаток топлива | Y12: подписи
G13: время выезда | I13: время возвращения | K13: показания спидометра перед выездом | L13: пройдено км к месту работы и обратно | M13: на пожарах(в мин) | O13: на учениях (в мин) | Q13: при смене караула (в мин) | S13: на прочих работах | U13: заправлено топлива
G14: часы | H14: минуты | I14: часы | J14: минуты | M14: с насосом | N14: без насоса | O14: с насосом | P14: без насоса | Q14: с насосом | R14: без насоса | S14: с насосом | T14: без насоса | V14: фактически | W14: по нормам | Y14: водителя | Z14: начальника караула
A15: 1 | B15: 2 | G15: 3 | H15: 4 | I15: 5 | J15: 6 | K15: 7 | L15: 8 | M15: 9 | N15: 10 | O15: 11 | P15: 12 | Q15: 13 | R15: 14 | S15: 15 | T15: 16 | U15: 17 | V15: 18 | W15: 19 | X15: 20 | Y15: 21 | Z15: 22
A16: 1,08 | B16: Окос территории 37-ПЧ | G16: 16 | H16: 00 | I16: 18 | J16: 00 | V16: =W16 -> 0 | W16: =IF(L16="",0,L16)*КИЛОМЕТР+(M16+O16+Q16+S16)*НАСОС+(N16+P16+R16+T16)*БЕЗ_НАСОСА -> 0 | X16: =Остаток_на_начало_месяца-W16+U16 -> 0.08
V17: =W17 -> 0 | W17: =IF(L17="",0,L17)*КИЛОМЕТР+(M17+O17+Q17+S17)*НАСОС+(N17+P17+R17+T17)*БЕЗ_НАСОСА -> 0 | X17: =IF(W17=0,"",X16-W17+U17) -> 
V18: 0 | W18: 0
V19: 0 | W19: 0
V20: 0 | W20: 0
V21: 0 | W21: 0
V22: 0 | W22: 0
V23: 0 | W23: 0
V24: 0 | W24: 0
V25: 0 | W25: 0
V26: 0 | W26: 0
V27: 0 | W27: 0
V28: 0 | W28: 0
L29: =IF(K30="","",K30-K29) ->  | V29: =W29 -> 0 | W29: =IF(L29="",0,L29)*КИЛОМЕТР+(M29+O29+Q29+S29)*НАСОС+(N29+P29+R29+T29)*БЕЗ_НАСОСА -> 0
V30: 0 | W30: 0
V31: 0 | W31: 0 | X31: =IF(W31=0,"",X30-W31+U31) -> 
V32: 0 | W32: 0
V33: 0 | W33: 0
V34: 0 | W34: 0
V35: 0 | W35: 0
V36: 0 | W36: 0
V37: 0 | W37: 0
V38: 0 | W38: 0
A39: ИТОГО за месяц | L39: =SUM(L16:L38) -> 0 | M39: 0 | N39: 0 | O39: 0 | P39: 0 | Q39: 0 | R39: 0 | S39: 0 | T39: 0 | U39: 0 | V39: 0 | W39: 0 | X39: =Остаток_на_начало_месяца+Заправлено-W39 -> 0.08
A40: Израсходовано топлива по элементам работы(в литрах) | L40: =L39*КИЛОМЕТР -> 0 | M40: =M39*НАСОС -> 0 | N40: =N39*БЕЗ_НАСОСА -> 0 | O40: =O39*НАСОС -> 0 | P40: =P39*БЕЗ_НАСОСА -> 0 | Q40: =Q39*НАСОС -> 0 | R40: =R39*БЕЗ_НАСОСА -> 0 | S40: =S39*НАСОС -> 0 | T40: =T39*БЕЗ_НАСОСА -> 0
B41: Наработка за отчетный месяц в км.(с учетом приведенного) | J41: =(M39+O39+Q39+S39)/60*50+L39 -> 0 | L41: км.
Q42: Текущая норма | V42: Пробег по спидометру, км | Y42: =L39 -> 0
C43: Руководитель подразделения | L43: Старший водитель | Q43: 1 км | V43: Наработка с насосом м.ч. | Y43: =(M39+O39+Q39+S39)/60 -> 0
C44: <_____>______________________2015г. | L44: <_____>_______________2015г. | Q44: 1 мин с насосом | T44: 0.01 | V44: Наработка без насоса | Y44: =N39+P39+R39+T39 -> 0
Q45: 1 мин без насоса | T45: 0.01 | V45: Приведенный пробег | Y45: =Y43*50 -> 0
V46: Общий пробег | Y46: =Y42+Y45 -> 0
